Workbook

Sheet Instructions
B2: =CONCATENATE(dms_Sector," ",dms_Segment," ", "Network Service Provider") -> Electricity Transmission Network Service Provider
B3: Regulatory Proposal RIN template
B4: =CONCATENATE("This template is to be used by ",INDEX(dms_TradingNameFull_List,MATCH(dms_TradingName,dms_TradingName_List))," to fulfil its reporting obligations to the AER.") -> This template is to be used by Directlink to fulfil its reporting obligations to the AER.
B5: INSTRUCTIONS
B6: GENERAL | C6: Complete the Business & other details worksheet before entering data or values in any other worksheets. The Business & other details worksheet is linked to other worksheets within the workbook and automatically generates certain column headings and conditional formatting.
B8: CONFIDENTIAL INFORMATION | C8: Businesses must use the macro at the top of each worksheet to identify confidential information in the confidential workbook and where confidential information has been removed in the public workbook.
C9: -Do this by selecting the cell or cells that contain confidential information and then run the CONFIDENTIAL macro. This will format the cells a specific colour that is identified by the AER's database which in turn marks that information as confidential. -To reverse this, select the cell or cells and run the NON-CONFIDENTIAL macro.
B11: PROTECTED (SOCI) INFORMATION | C11: Please use the macro at the top of each worksheet to identify information in the confidential workbook that is protected information under the SOCI Act. All information marked Protected (SOCI) is also deemed to be confidential information.
C12: -Do this by selecting the cell or cells that contain protected information and then run the PROTECTED (SOCI) macro. This will format the cells a specific colour that is identified by the AER's database which in turn marks that information as protected.. -To reverse this, select the cell or cells and run the NON-PROTECTED macro.
B13: RESPONSES | C13: Please return two (2) files to the AER: 1. A confidential version which must contain a complete set of all responses with confidential information marked using the Mark selection CONFIDENTIAL macro and which has been completed using the locked template file provided by the AER. 2. A public version with confidential information redacted or aggregated. Use the drop down box on the Business and other details worksheet to identify the file as either confidential or public.
B16: ORDER OF MAGNITUDE | C16: All amounts are to be unrounded and reported on a one for one basis: that is 1000 is to be entered as '1000'.
B18: INPUT / NON-INPUT CELLS
D19: Yellow = Input cell (mandatory)
D20: Darker yellow = input cell (mandatory)
D21: Orange = input cell (if data available)
D22: Grey = Not applicable/No inputs required
D23: PLEASE DO NOT ENTER TEXT into cells that are to contain numbers

Sheet CONTENTS
D1: =INDEX(dms_Worksheet_List,MATCH(dms_Model,dms_Model_List)) -> REGULATORY REPORTING STATEMENT
D2: =INDEX(dms_TradingNameFull_List,MATCH(dms_TradingName,dms_TradingName_List)) -> Directlink
D3: =IF(SUM(dms_SingleYear_Model)>0,CRY,CONCATENATE("Regulatory period ",FRCP_y1," to ",dms_MultiYear_FinalYear_Result)) -> Regulatory period 2025-26 to 2029-30
E6: CONTENTS
E8: DRAFT ONLY - DO NOT USE FOR SUBMISSION
E10: TEMPLATE | F10: FINAL RIN - OCTOBER 2023
E12: SUBMISSION | F12: Business & other details
E14: EXPENDITURE | F14: 2.1 Expenditure Summary
F15: 2.3c Material Projects
F16: 2.6 Non-network
F17: 2.14 Forecast price changes
F18: 2.16 Opex
F19: 2.17 Step Changes
E21: ECONOMIC BENCHMARKING | F21: 3.2.3 Provisions
E23: OTHER | F23: 7.1 Policies and Procedures
F24: 7.2 Contingent projects
F25: 7.3 Obligations
F26: 7.4 Shared Assets
F27: 7.9 STPIS
E29: FINANCIAL | F29: 8.2 Capex

Sheet Business & other details
V1: =INDEX(dms_Worksheet_List,MATCH(dms_Model,dms_Model_List)) -> REGULATORY REPORTING STATEMENT
V2: =INDEX(dms_TradingNameFull_List,MATCH(dms_TradingName,dms_TradingName_List)) -> Directlink
V3: =IF(SUM(dms_SingleYear_Model)>0,CRY,CONCATENATE("Regulatory period ",FRCP_y1," to ",dms_MultiYear_FinalYear_Result)) -> Regulatory period 2025-26 to 2029-30
V4: BUSINESS & OTHER DETAILS
V6: INSTRUCTIONS
V7: Complete the following business details regulatory template before entering data or values in any other regulatory template. This regulatory template is linked to other cells within the spreadsheet and automatically generates column headings and conditional formatting to distinguish business specific input and non-input cells.
Q9: SUBMISSION PARTICULARS INPUT SHEET
Q11: DRAFT TEMPLATE ONLY
Q12: DO NOT USE FOR SUBMISSIONS
V15: ENTITY DETAILS
V17: Business Name
V19: Short name | AL19: Directlink
V20: ACN/ABN | AL20: =INDEX(dms_ABN_List,MATCH(dms_TradingName,dms_TradingName_List)) -> 16779340889
V24: Business Address | BQ24: Postal Address
V26: Address 1 | AL26: =INDEX(dms_Addr1_List,MATCH(dms_TradingName,dms_TradingName_List)) -> Level 19, HSBC Building | BI26: Address 1 | BQ26: =INDEX(dms_PAddr1_List,MATCH(dms_TradingName,dms_TradingName_List)) -> PO Box R41
V27: Address 2 | AL27: =IF(ISBLANK(INDEX(dms_Addr2_List,MATCH(dms_TradingName,dms_TradingName_List))),"",(INDEX(dms_Addr2_List,MATCH(dms_TradingName,dms_TradingName_List)))) -> 580 George Street | BI27: Address 2 | BQ27: =IF(ISBLANK(INDEX(dms_PAddr2_List,MATCH(dms_TradingName,dms_TradingName_List))),"",(INDEX(dms_PAddr2_List,MATCH(dms_TradingName,dms_TradingName_List)))) -> 
V28: Suburb | AL28: =INDEX(dms_Suburb_List,MATCH(dms_TradingName,dms_TradingName_List)) -> SYDNEY | BI28: Suburb | BQ28: =INDEX(dms_PSuburb_List,MATCH(dms_TradingName,dms_TradingName_List)) -> ROYAL EXCHANGE
V29: State | AL29: =INDEX(dms_State_List,MATCH(dms_TradingName,dms_TradingName_List)) -> NSW | AV29: Post code | BI29: State | BQ29: =INDEX(dms_PState_List,MATCH(dms_TradingName,dms_TradingName_List)) -> NSW | CA29: Post code | CC29: 1225
BA31: `
V33: Contact Names
V35: Name | BI35: Name
V36: Phone | BI36: Phone
V37: Email | BI37: Email
Q42: REGULATORY CONTROL PERIODS
Z45: Forthcoming period | AL45: 2025-26 | AU45: =FRCP_y2 -> 2026-27 | BD45: =FRCP_y3 -> 2027-28 | BM45: =FRCP_y4 -> 2028-29 | BV45: =FRCP_y5 -> 2029-30
AL46: =FRCP_y6 -> 2030-31 | AU46: =FRCP_y7 -> 2031-32 | BD46: =FRCP_y8 -> 2032-33 | BM46: =FRCP_y9 -> 2033-34 | BV46: =FRCP_y10 -> 2034-35
AL47: =FRCP_y11 -> 2035-36 | AU47: =FRCP_y12 -> 2036-37 | BD47: =FRCP_y13 ->  | BM47: =FRCP_y14 ->  | BV47: =FRCP_y15 -> 
X49: RESETS | Z49: Current period | AL49: =CRCP_y1 -> 2020-21 | AU49: =CRCP_y2 -> 2021-22 | BD49: =CRCP_y3 -> 2022-23 | BM49: =CRCP_y4 -> 2023-24 | BV49: =CRCP_y5 -> 2024-25
AL50: =CRCP_y6 -> 2025-26 | AU50: =CRCP_y7 -> 2026-27 | BD50: =CRCP_y8 -> 2027-28 | BM50: =CRCP_y9 -> 2028-29 | BV50: =CRCP_y10 -> 2029-30
AL51: =CRCP_y11 -> 2030-31 | AU51: =CRCP_y12 -> 2031-32 | BD51: =CRCP_y13 -> 2032-33 | BM51: =CRCP_y14 -> 2033-34 | BV51: =CRCP_y15 -> 2034-35
Z53: Previous period | AL53: =PRCP_y1 -> 2015-16 | AU53: =PRCP_y2 -> 2016-17 | BD53: =PRCP_y3 -> 2017-18 | BM53: =PRCP_y4 -> 2018-19 | BV53: =PRCP_y5 -> 2019-20
AL54: =PRCP_y6 -> 2020-21 | AU54: =PRCP_y7 -> 2021-22 | BD54: =PRCP_y8 -> 2022-23 | BM54: =PRCP_y9 -> 2023-24 | BV54: =PRCP_y10 -> 2024-25
AL55: =PRCP_y11 -> 2025-26 | AU55: =PRCP_y12 -> 2026-27 | BD55: =PRCP_y13 -> 2027-28 | BM55: =PRCP_y14 -> 2028-29 | BV55: =PRCP_y15 -> 2029-30
Z57: Commencing year | AL57: 2018-19
X58: ANNUAL RINS
Z59: Final year | AL59: 2027-28
Q63: SUBMISSION DETAILS
Z65: RIN type | AL65: =INDIRECT(dms_Model) -> Regulatory Reporting (Reset)
Z67: Source | AL67: Regulatory proposal
X69: THIS FILE | Z69: Data Quality | AL69: Consolidated
Z71: Confidentiality Status | AL71: Public
Z73: Amended RIN Amendment Reason | AL73: .
Z77: Submission Date | AL77: 2024-01-30 | BD77: Please enter date this file submitted to AER

Sheet 2.1 Expenditure Summary
B1: =IF(dms_DataQuality="backcast",INDEX(dms_Worksheet_List,MATCH(dms_Model,dms_Model_List))&" BACKCAST",INDEX(dms_Worksheet_List,MATCH(dms_Model,dms_Model_List))) -> REGULATORY REPORTING STATEMENT
B2: =INDEX(dms_TradingNameFull_List,MATCH(dms_TradingName,dms_TradingName_List)) -> Directlink
B3: =IF(SUM(dms_SingleYear_Model)>0,CRY,CONCATENATE("Regulatory period ",FRCP_y1," to ",dms_MultiYear_FinalYear_Result)) -> Regulatory period 2025-26 to 2029-30
B4: 2.1 - EXPENDITURE SUMMARY
B5: TEMPLATE DATE - OCTOBER 2023 - FINAL RIN
B7: 2.1.1 - PRESCRIBED TRANSMISSION SERVICES CAPEX (as incurred)
C9: EXPENDITURE
C10: ($, nominal) | F10: =CONCATENATE("Forecast ($, real ", dms_DollarReal, ")") -> Forecast ($, real June 2025)
C11: =CRCP_y1 -> 2020-21 | D11: =CRCP_y2 -> 2021-22 | E11: =CRCP_y3 -> 2022-23 | F11: =CRCP_y4 -> 2023-24 | G11: =CRCP_y5 -> 2024-25 | H11: =FRCP_y1 -> 2025-26 | I11: =FRCP_y2 -> 2026-27 | J11: =FRCP_y3 -> 2027-28 | K11: =FRCP_y4 -> 2028-29 | L11: =FRCP_y5 -> 2029-30
B12: Replacement expenditure | C12: 2048316.724 | D12: 2568620.51 | E12: 7553220.54 | F12: 12532198.5 | G12: 4779443.35 | H12: 13805901.51 | I12: 4533638.696 | J12: 4200392.438 | K12: 3898390.397 | L12: 7363448.184
B13: Connections
B14: Augmentation Expenditure
B15: Non-network
B16: Capitalised network overheads
B17: Capitalised corporate overheads
B18: TOTAL CAPEX | C18: =SUM(C12:C17) -> 2048316.724 | D18: 2568620.51 | E18: 7553220.54 | F18: 12532198.5 | G18: =SUM(G12:G17) -> 4779443.35 | H18: 13805901.51 | I18: 4533638.696 | J18: 4200392.438 | K18: 3898390.397 | L18: 7363448.184

Sheet 2.3c Material Projects
B1: =IF(dms_DataQuality="backcast",INDEX(dms_Worksheet_List,MATCH(dms_Model,dms_Model_List))&" BACKCAST",INDEX(dms_Worksheet_List,MATCH(dms_Model,dms_Model_List))) -> REGULATORY REPORTING STATEMENT
B2: =INDEX(dms_TradingNameFull_List,MATCH(dms_TradingName,dms_TradingName_List)) -> Directlink
B3: =IF(SUM(dms_SingleYear_Model)>0,CRY,CONCATENATE("Regulatory period ",FRCP_y1," to ",dms_MultiYear_FinalYear_Result)) -> Regulatory period 2025-26 to 2029-30
B4: 2.3c MATERIAL PROJECTS
B5: TEMPLATE DATE - OCTOBER 2023 - FINAL RIN
B8: Instructions
B9: Enter information for material projects only in the tables below.
B11: 2.3c.1 - PROJECTS IN THE FORTHCOMING REGULATORY CONTROL PERIOD
B13: ONGOING AND FUTURE PROJECTS
B14: Unique identifier | C14: Project name | D14: Description of project | E14: Proposed start date | F14: Proposed commissioning date | G14: Location | H14: Business case approval | I14: Business case approval date | J14: Primary expenditure purpose category | L14: =CONCATENATE("Forecast yearly expenditure - forthcoming regulatory control period, $real ",dms_DollarReal) -> Forecast yearly expenditure - forthcoming regulatory control period, $real June 2025 | Q14: Total
L15: =FRCP_y1 -> 2025-26 | M15: =FRCP_y2 -> 2026-27 | N15: =FRCP_y3 -> 2027-28 | O15: =FRCP_y4 -> 2028-29 | P15: =FRCP_y5 -> 2029-30
B16: Include unique identifier for each project | D16: Provide a brief description of the project stating (where required) whether the regulatory test was satisfied, reference the appropriate documentation and where the regulatory test is yet to be satisfied the estimated timeframe for this to be achieved. | E16: Identify month and year | F16: Identify month and year | G16: Identify location if only one site, if several, e.g. pole replacement, insert 'various'. | H16: Reference the appropriate documentation supporting approval for the project. Where the business case is yet to be approved provide the estimated timeframe for this to be achieved. | I16: Identify month and year of the business case approval (if relevant) | J16: State the primary expenditure purpose category regarding this project. | L16: Include the anticipated or known expenditure of the project by expenditure purpose.
B17: FCT001 | C17: Spares Management | D17: Project to increase sparing stored in order to manage obsolesence risk and long lead time risk for critical components | E17: 2025-08-01 | F17: 2030-03-01 | G17: various | H17: Business case for spares submitted for review | I17: Review and approval underway | J17: Capex | K17: Capital expenditure | L17: 1836136.781 | M17: 1216547.23 | N17: 1698511.381 | O17: 1548374.581 | P17: 6211830.027 | Q17: =SUM(L17:P17) -> 12511400
K18: Operating expenditure | L18: 0 | M18: 0 | N18: 0 | O18: 0 | P18: 0 | Q18: =SUM(L18:P18) -> 0
K19: Maintenance expenditure | L19: 0 | M19: 0 | N19: 0 | O19: 0 | P19: 0 | Q19: =SUM(L19:P19) -> 0
K20: Total | L20: 1836136.781 | M20: 1216547.23 | N20: 1698511.381 | O20: 1548374.581 | P20: 6211830.027 | Q20: =SUM(Q17:Q19) -> 12511400
B21: FCT002 | C21: IGBT Generation 3 Upgrade | D21: Upgrade of some obsolete Gen 2 IGBTs with Gen 3 IGBTs, freeing up further Gen 2 IGBT spares. | E21: Currently underway | F21: 2026-08-01 | G21: Bungalora System 1 | H21: IGBT upgrade was approved under a RIT-T commenced in 2021 | I21: N/A - no business case, separate RIT-T to the revenue determination | J21: Capex | K21: Capital expenditure | L21: 6058148.406 | M21: 0 | N21: 0 | O21: 0 | P21: 0 | Q21: =SUM(L21:P21) -> 6058148.406
K22: Operating expenditure | L22: 0 | M22: 0 | N22: 0 | O22: 0 | P22: 0 | Q22: =SUM(L22:P22) -> 0
K23: Maintenance expenditure | L23: 0 | M23: 0 | N23: 0 | O23: 0 | P23: 0 | Q23: =SUM(L23:P23) -> 0
K24: Total | L24: =SUM(L21:L23) -> 6058148.406 | M24: 0 | N24: 0 | O24: 0 | P24: 0 | Q24: 6058148.406
B25: FCT003 | C25: Physical Site Security and Public Protection - Mullumbimby | D25: Improve security to facility to prevent access from intruders and the public | E25: 2025-08-01 | F25: 2024-08-27 | G25: various | H25: Business case for Safety and Security submitted for review | I25: Review and approval underway | J25: Capex | K25: Capital expenditure | L25: 1487257.854 | M25: 703616.2994 | N25: 0 | O25: 0 | P25: 0 | Q25: =SUM(L25:P25) -> 2190874.154
K26: Operating expenditure | L26: 0 | M26: 0 | N26: 0 | O26: 0 | P26: 0 | Q26: =SUM(L26:P26) -> 0
K27: Maintenance expenditure | L27: 0 | M27: 0 | N27: 0 | O27: 0 | P27: 0 | Q27: =SUM(L27:P27) -> 0
K28: Total | L28: =SUM(L25:L27) -> 1487257.854 | M28: 703616.2994 | N28: 0 | O28: 0 | P28: 0 | Q28: 2190874.154
K30: Operating expenditure | L30: 0 | M30: 0 | N30: 0 | O30: 0 | P30: 0 | Q30: =SUM(L30:P30) -> 0
K31: Maintenance expenditure | L31: 0 | M31: 0 | N31: 0 | O31: 0 | P31: 0 | Q31: =SUM(L31:P31) -> 0
K32: Total | L32: =SUM(L29:L31) -> 0 | M32: 0 | N32: 0 | O32: 0 | P32: 0 | Q32: 0
K33: Capital expenditure | Q33: =SUM(L33:P33) -> 0
K34: Operating expenditure | Q34: =SUM(L34:P34) -> 0
K35: Maintenance expenditure | Q35: =SUM(L35:P35) -> 0
K36: Total | L36: =SUM(L33:L35) -> 0 | M36: 0 | N36: 0 | O36: 0 | P36: 0 | Q36: 0
K37: Capital expenditure | Q37: =SUM(L37:P37) -> 0
K38: Operating expenditure | Q38: =SUM(L38:P38) -> 0
K39: Maintenance expenditure | Q39: =SUM(L39:P39) -> 0
K40: Total | L40: =SUM(L37:L39) -> 0 | M40: 0 | N40: 0 | O40: 0 | P40: 0 | Q40: 0
K41: Capital expenditure | Q41: =SUM(L41:P41) -> 0
K42: Operating expenditure | Q42: =SUM(L42:P42) -> 0
K43: Maintenance expenditure | Q43: =SUM(L43:P43) -> 0
K44: Total | L44: =SUM(L41:L43) -> 0 | M44: 0 | N44: 0 | O44: 0 | P44: 0 | Q44: 0
K45: Capital expenditure | Q45: =SUM(L45:P45) -> 0
K46: Operating expenditure | Q46: =SUM(L46:P46) -> 0
K47: Maintenance expenditure | Q47: =SUM(L47:P47) -> 0
K48: Total | L48: =SUM(L45:L47) -> 0 | M48: 0 | N48: 0 | O48: 0 | P48: 0 | Q48: 0
K49: Capital expenditure | Q49: =SUM(L49:P49) -> 0
K50: Operating expenditure | Q50: =SUM(L50:P50) -> 0
K51: Maintenance expenditure | Q51: =SUM(L51:P51) -> 0
K52: Total | L52: =SUM(L49:L51) -> 0 | M52: 0 | N52: 0 | O52: 0 | P52: 0 | Q52: 0
K53: Capital expenditure | Q53: =SUM(L53:P53) -> 0
K54: Operating expenditure | Q54: =SUM(L54:P54) -> 0
K55: Maintenance expenditure | Q55: =SUM(L55:P55) -> 0
K56: Total | L56: =SUM(L53:L55) -> 0 | M56: 0 | N56: 0 | O56: 0 | P56: 0 | Q56: 0
K57: Total | L57: =(L20+L24+L28+L32+L36+L40+L44+L48+L52+L56) -> 9381543.042 | M57: 1920163.53 | N57: 1698511.381 | O57: 1548374.581 | P57: 6211830.027 | Q57: 20760422.56
B61: 2.3c.2 - PROJECTS IN THE CURRENT REGULATORY CONTROL PERIOD
B63: CURRENT PROJECTS
L64: Yearly expenditure - current regulatory control period (nominal $'0s) | Q64: Total
B65: Unique identifier | C65: Project name | D65: Description of project | E65: Proposed start date | F65: Proposed commissioning date | G65: Location | H65: Business case approval | I65: Business case approval date | J65: Primary expenditure purpose category | L65: =CRCP_y1 -> 2020-21 | M65: =CRCP_y2 -> 2021-22 | N65: =CRCP_y3 -> 2022-23 | O65: =CRCP_y4 -> 2023-24 | P65: =CRCP_y5 -> 2024-25 | Q65: Total
B66: Include unique identifier for each project | D66: Provide a brief description of the project stating (where required) whether the regulatory test was satisfied, reference the appropriate documentation and where the regulatory test is yet to be satisfied the estimated timeframe for this to be achieved. | E66: Identify month and year | F66: Identify month and year | G66: Identify location if only one site, if several, e.g. pole replacement, insert 'various'. | H66: Reference the appropriate documentation supporting approval for the project. Where the business case is yet to be approved provide the estimated timeframe for this to be achieved. | I66: Identify month and year of the business case approval (if relevant) | J66: State the primary expenditure purpose category regarding this project. | L66: Include approved expenditure of the project as at time of business case approval.
C67: DL Osolete IGBTs | E67: FY22 | K67: Capital expenditure | L67: 0 | M67: 1134292.44 | N67: 6135826.39 | Q67: =SUM(L67:P67) -> 7270118.83
K68: Operating expenditure | L68: 0 | M68: 0 | N68: 0 | Q68: =SUM(L68:P68) -> 0
K69: Maintenance expenditure | L69: 0 | M69: 0 | N69: 0 | Q69: =SUM(L69:P69) -> 0
K70: Total | L70: =SUM(L67:L69) -> 0 | M70: 1134292.44 | N70: 6135826.39 | O70: 0 | P70: 0 | Q70: 7270118.83
K71: Capital expenditure | Q71: =SUM(L71:P71) -> 0
K72: Operating expenditure | Q72: =SUM(L72:P72) -> 0
K73: Maintenance expenditure | Q73: =SUM(L73:P73) -> 0
K74: Total | L74: =SUM(L71:L73) -> 0 | M74: 0 | N74: 0 | O74: 0 | P74: 0 | Q74: 0
K75: Capital expenditure | Q75: =SUM(L75:P75) -> 0
K76: Operating expenditure | Q76: =SUM(L76:P76) -> 0
K77: Maintenance expenditure | Q77: =SUM(L77:P77) -> 0
K78: Total | L78: =SUM(L75:L77) -> 0 | M78: 0 | N78: 0 | O78: 0 | P78: 0 | Q78: 0
K79: Capital expenditure | Q79: =SUM(L79:P79) -> 0
K80: Operating expenditure | Q80: =SUM(L80:P80) -> 0
K81: Maintenance expenditure | Q81: =SUM(L81:P81) -> 0
K82: Total | L82: =SUM(L79:L81) -> 0 | M82: 0 | N82: 0 | O82: 0 | P82: 0 | Q82: 0
K83: Capital expenditure | Q83: =SUM(L83:P83) -> 0
K84: Operating expenditure | Q84: =SUM(L84:P84) -> 0
K85: Maintenance expenditure | Q85: =SUM(L85:P85) -> 0
K86: Total | L86: =SUM(L83:L85) -> 0 | M86: 0 | N86: 0 | O86: 0 | P86: 0 | Q86: 0
K87: Capital expenditure | Q87: =SUM(L87:P87) -> 0
K88: Operating expenditure | Q88: =SUM(L88:P88) -> 0
K89: Maintenance expenditure | Q89: =SUM(L89:P89) -> 0
K90: Total | L90: =SUM(L87:L89) -> 0 | M90: 0 | N90: 0 | O90: 0 | P90: 0 | Q90: 0
K91: Capital expenditure | Q91: =SUM(L91:P91) -> 0
K92: Operating expenditure | Q92: =SUM(L92:P92) -> 0
K93: Maintenance expenditure | Q93: =SUM(L93:P93) -> 0
K94: Total | L94: =SUM(L91:L93) -> 0 | M94: 0 | N94: 0 | O94: 0 | P94: 0 | Q94: 0
K95: Capital expenditure | Q95: =SUM(L95:P95) -> 0
K96: Operating expenditure | Q96: =SUM(L96:P96) -> 0
K97: Maintenance expenditure | Q97: =SUM(L97:P97) -> 0
K98: Total | L98: =SUM(L95:L97) -> 0 | M98: 0 | N98: 0 | O98: 0 | P98: 0 | Q98: 0
K99: Capital expenditure | Q99: =SUM(L99:P99) -> 0
K100: Operating expenditure | Q100: =SUM(L100:P100) -> 0
K101: Maintenance expenditure | Q101: =SUM(L101:P101) -> 0
K102: Total | L102: =SUM(L99:L101) -> 0 | M102: 0 | N102: 0 | O102: 0 | P102: 0 | Q102: 0
K103: Capital expenditure | Q103: =SUM(L103:P103) -> 0
K104: Operating expenditure | Q104: =SUM(L104:P104) -> 0
K105: Maintenance expenditure | Q105: =SUM(L105:P105) -> 0
K106: Total | L106: =SUM(L103:L105) -> 0 | M106: 0 | N106: 0 | O106: 0 | P106: 0 | Q106: 0
K107: Total | L107: =(L70+L74+L78+L82+L86+L90+L94+L98+L102+L106) -> 0 | M107: 1134292.44 | N107: 6135826.39 | O107: 0 | P107: 0 | Q107: 7270118.83

Sheet 2.6 Non-network
B1: =IF(dms_DataQuality="backcast",INDEX(dms_Worksheet_List,MATCH(dms_Model,dms_Model_List))&" BACKCAST",INDEX(dms_Worksheet_List,MATCH(dms_Model,dms_Model_List))) -> REGULATORY REPORTING STATEMENT
B2: =INDEX(dms_TradingNameFull_List,MATCH(dms_TradingName,dms_TradingName_List)) -> Directlink
B3: =IF(SUM(dms_SingleYear_Model)>0,CRY,CONCATENATE("Regulatory period ",FRCP_y1," to ",dms_MultiYear_FinalYear_Result)) -> Regulatory period 2025-26 to 2029-30
B4: 2.6 NON NETWORK EXPENDITURE
B5: TEMPLATE DATE - OCTOBER 2023 - FINAL RIN
B9: 2.6.1 - NON-NETWORK EXPENDITURE
D10: EXPENDITURE
D11: ($, nominal) | G11: =CONCATENATE("Forecast ($, real ", dms_DollarReal, ")") -> Forecast ($, real June 2025)
D12: =CRCP_y1 -> 2020-21 | E12: =CRCP_y2 -> 2021-22 | F12: =CRCP_y3 -> 2022-23 | G12: =CRCP_y4 -> 2023-24 | H12: =CRCP_y5 -> 2024-25 | I12: =FRCP_y1 -> 2025-26 | J12: =FRCP_y2 -> 2026-27 | K12: =FRCP_y3 -> 2027-28 | L12: =FRCP_y4 -> 2028-29 | M12: =FRCP_y5 -> 2029-30
B13: OPEX
B14: IT & COMMUNICATIONS | C14: Total IT & communications | D14: 0 | E14: 0 | F14: 0
B15: MOTOR VEHICLES | C15: Total motor vehicles | D15: 0 | E15: 0 | F15: 0
B16: BUILDINGS AND PROPERTY | C16: Total buildings and property expenditure | D16: 6823 | E16: 5942.354 | F16: 6721.649
B17: OTHER | C17: Total other | D17: 687699.7898 | E17: 955852.7398 | F17: 1003264.771
B18: CAPEX
B19: IT & COMMUNICATIONS | C19: Total IT & communications | D19: 0 | E19: 0 | F19: 0
B20: MOTOR VEHICLES | C20: Total motor vehicles | D20: 0 | E20: 0 | F20: 0
B21: BUILDINGS AND PROPERTY | C21: Total buildings and property expenditure | D21: 0 | E21: 0 | F21: 0
B22: OTHER | C22: Total other | D22: 0 | E22: 0 | F22: 0

Sheet 2.14 Forecast price changes
B1: =(LOOKUP(dms_Model,dms_Model_List,dms_Worksheet_List)) -> REGULATORY REPORTING STATEMENT
B2: =INDEX(dms_TradingNameFull_List,MATCH(dms_TradingName,dms_TradingName_List)) -> Directlink
B3: =IF(SUM(dms_SingleYear_Model)>0,CRY,CONCATENATE("Regulatory period ",FRCP_y1," to ",dms_MultiYear_FinalYear_Result)) -> Regulatory period 2025-26 to 2029-30
B4: 2.14 FORECAST PRICE CHANGES
B5: TEMPLATE DATE - OCTOBER 2023 - FINAL RIN
B7: Instructions
B8: The TNSP must provide all forecast price changes used to forecast opex and capex, including forecast changes in CPI. Forecast price changes must be expressed in real terms, except for CPI. If the same escalators are not used for capex and opex, report capex and opex escalators separately. If price changes for a given year were not used to forecast either opex or capex enter '0' for that year.
B10: 2.14.1 - FORECAST LABOUR AND MATERIALS PRICE CHANGES
C11: Price changes (% YoY real) Current regulatory period | H11: Price changes (%YoY real) Forthcoming regulatory period
C12: ($, nominal) | F12: =CONCATENATE("Forecast ($, real ", dms_DollarReal, ")") -> Forecast ($, real June 2025)
C13: =CRCP_y1 -> 2020-21 | D13: =CRCP_y2 -> 2021-22 | E13: =CRCP_y3 -> 2022-23 | F13: =CRCP_y4 -> 2023-24 | G13: =CRCP_y5 -> 2024-25 | H13: =FRCP_y1 -> 2025-26 | I13: =FRCP_y2 -> 2026-27 | J13: =FRCP_y3 -> 2027-28 | K13: =FRCP_y4 -> 2028-29 | L13: =FRCP_y5 -> 2029-30
B14: Materials price changes
B15: CPI | C15: 0 | D15: 0 | E15: 0 | F15: 0 | G15: 0 | H15: 0 | I15: 0 | J15: 0 | K15: 0 | L15: 0
B45: Labour and Other price changes
B46: Wages Price Index | C46: 0 | D46: 0 | E46: 0 | F46: 0 | G46: 0 | H46: 0.0129 | I46: 0.0109 | J46: 0.009 | K46: 0.0118 | L46: 0.0133
B61: CPI

Sheet 2.16 Opex Summary
B1: =IF(dms_DataQuality="backcast",INDEX(dms_Worksheet_List,MATCH(dms_Model,dms_Model_List))&" BACKCAST",INDEX(dms_Worksheet_List,MATCH(dms_Model,dms_Model_List))) -> REGULATORY REPORTING STATEMENT
B2: =INDEX(dms_TradingNameFull_List,MATCH(dms_TradingName,dms_TradingName_List)) -> Directlink
B3: =IF(SUM(dms_SingleYear_Model)>0,CRY,CONCATENATE("Regulatory period ",FRCP_y1," to ",dms_MultiYear_FinalYear_Result)) -> Regulatory period 2025-26 to 2029-30
B4: 2.16 OPEX SUMMARY
B5: TEMPLATE DATE - OCTOBER 2023 - FINAL RIN
B7: Instructions | K7: IMPORTANT!
B8: Complete the tables below in accordance with the regulatory information notice. Murraylink's total forecast opex must reconcile to Table 2.16.1. If Murraylink did not forecast its total opex using a Base Year approach, total forecast opex must reconcile to Table 2.16.2 | K8: =CONCATENATE("Has ",dms_TradingName," used a base-step-trend model to derive its opex forecast? ") -> Has Directlink used a base-step-trend model to derive its opex forecast? | M8: Yes
B9: The total step changes and category specific forecasts in Table 2.16.1 must reconcile (in each year) to the total step changes and category secific forecasts for each year in Tables 2.17.1 and 2.17.5 of worksheet 2.17 Step Changes.") | K9: Yes / No
K10: Please nominate the base year. | M10: 2022-23
B12: 2.16.1 - PRESCRIBED TRANSMISSION SERVICES - OPEX BY DRIVER
C13: =CONCATENATE("Forecast ($, real ", dms_DollarReal, ")") -> Forecast ($, real June 2025)
C14: =CRCP_y1 -> 2020-21 | D14: =CRCP_y2 -> 2021-22 | E14: =CRCP_y3 -> 2022-23 | F14: =CRCP_y4 -> 2023-24 | G14: =CRCP_y5 -> 2024-25 | H14: =FRCP_y1 -> 2025-26 | I14: =FRCP_y2 -> 2026-27 | J14: =FRCP_y3 -> 2027-28 | K14: =FRCP_y4 -> 2028-29 | L14: =FRCP_y5 -> 2029-30
B15: Base year total opex, excluding category specific | E15: 5459465 | F15: 5459465 | G15: 5459465 | H15: 5459465 | I15: 5459465 | J15: 5459465 | K15: 5459465 | L15: 5459465
B16: Increment from base year to final year | G16: 87800 | H16: 87800 | I16: 87800 | J16: 87800 | K16: 87800 | L16: 87800
B17: Price growth | H17: 37714 | I17: 69785 | J17: 96475 | K17: 131556 | L17: 171358
B18: Output growth | H18: 0 | I18: 0 | J18: 0 | K18: 0 | L18: 0
B19: Productivity growth | H19: 0 | I19: 0 | J19: 0 | K19: 0 | L19: 0
B20: Step changes | H20: 170000 | I20: 170000 | J20: 170000 | K20: 170000 | L20: 170000
B21: Category specific | E21: 1044312 | F21: 1044312 | G21: 1069397 | H21: 1940000 | I21: 1960000 | J21: 2010000 | K21: 2030000 | L21: 2020000
B22: Total opex | E22: =SUM(E15:E21) -> 6503777 | F22: 6503777 | G22: 6616662 | H22: =SUM(H15:H21) -> 7694979 | I22: =SUM(I15:I21) -> 7747050 | J22: =SUM(J15:J21) -> 7823740 | K22: =SUM(K15:K21) -> 7878821 | L22: =SUM(L15:L21) -> 7908623
B26: 2.16.2 - PRESCRIBED TRANSMISSION SERVICES - OPEX BY CATEGORY
C27: =CONCATENATE("Forecast ($, real ", dms_DollarReal, ")") -> Forecast ($, real June 2025)
C28: =CRCP_y1 -> 2020-21 | D28: =CRCP_y2 -> 2021-22 | E28: =CRCP_y3 -> 2022-23 | F28: =CRCP_y4 -> 2023-24 | G28: =CRCP_y5 -> 2024-25 | H28: =FRCP_y1 -> 2025-26 | I28: =FRCP_y2 -> 2026-27 | J28: =FRCP_y3 -> 2027-28 | K28: =FRCP_y4 -> 2028-29 | L28: =FRCP_y5 -> 2029-30
B59: Total opex | C59: =SUM(C29:C58) -> 0 | D59: 0 | E59: 0 | F59: 0 | G59: 0 | H59: 0 | I59: 0 | J59: 0 | K59: 0 | L59: 0

Sheet 2.17 Step Changes
B1: =(LOOKUP(dms_Model,dms_Model_List,dms_Worksheet_List)) -> REGULATORY REPORTING STATEMENT
B2: =INDEX(dms_TradingNameFull_List,MATCH(dms_TradingName,dms_TradingName_List)) -> Directlink
B3: =IF(SUM(dms_SingleYear_Model)>0,CRY,CONCATENATE("Regulatory period ",FRCP_y1," to ",dms_MultiYear_FinalYear_Result)) -> Regulatory period 2025-26 to 2029-30
B4: 2.17 STEP CHANGES
B5: TEMPLATE DATE - OCTOBER 2023 - FINAL RIN
B7: Instructions
B8: Complete the Tables below in accordance with the regulatory information notice. The total step changes in Table 2.17.1 must reconcile (in each year) to the total step changes for each year in Table 2.16.1 of worksheet 2.16 Opex Summary.
B10: 2.17.1 - FORECAST OPEX STEP CHANGES
D11: EXPENDITURE
D12: =CONCATENATE("Forecast ($, real ", dms_DollarReal, ")") -> Forecast ($, real June 2025)
B13: Step change | C13: Description | D13: =CRCP_y4 -> 2023-24 | E13: =CRCP_y5 -> 2024-25 | F13: =FRCP_y1 -> 2025-26 | G13: =FRCP_y2 -> 2026-27 | H13: =FRCP_y3 -> 2027-28 | I13: =FRCP_y4 -> 2028-29 | J13: =FRCP_y5 -> 2029-30
B14: Apprenticeship Scheme | C14: Direcltink is including cost of Apprentices | D14: 0 | E14: 0 | F14: 170000 | G14: 170000 | H14: 170000 | I14: 170000 | J14: 170000
C29: TOTAL | D29: =SUM(D14:D28) -> 0 | E29: 0 | F29: 170000 | G29: 170000 | H29: 170000 | I29: 170000 | J29: 170000
C30: Check | F30: =IF(D$29-'2.16 Opex Summary'!H20=0,"OK","Error") -> Error | G30: =IF(E$29-'2.16 Opex Summary'!I20=0,"OK","Error") -> Error | H30: =IF(F$29-'2.16 Opex Summary'!J20=0,"OK","Error") -> OK | I30: =IF(G$29-'2.16 Opex Summary'!K20=0,"OK","Error") -> OK | J30: =IF(H$29-'2.16 Opex Summary'!L20=0,"OK","Error") -> OK
B32: 2.17.2 - FORECAST CAPEX STEP CHANGES
D33: EXPENDITURE
D34: =CONCATENATE("Forecast ($, real ", dms_DollarReal, ")") -> Forecast ($, real June 2025)
B35: Step change | C35: Description | D35: =CRCP_y4 -> 2023-24 | E35: =CRCP_y5 -> 2024-25 | F35: =FRCP_y1 -> 2025-26 | G35: =FRCP_y2 -> 2026-27 | H35: =FRCP_y3 -> 2027-28 | I35: =FRCP_y4 -> 2028-29 | J35: =FRCP_y5 -> 2029-30
C51: TOTAL | D51: =SUM(D36:D50) -> 0 | E51: 0 | F51: 0 | G51: 0 | H51: 0 | I51: 0 | J51: 0
B54: 2.17.5 - CATEGORY SPECIFIC OPEX
D55: EXPENDITURE
D56: =CONCATENATE("Forecast ($, real ", dms_DollarReal, ")") -> Forecast ($, real June 2025)
B57: Category specific opex | D57: =CRCP_y4 -> 2023-24 | E57: =CRCP_y5 -> 2024-25 | F57: =FRCP_y1 -> 2025-26 | G57: =FRCP_y2 -> 2026-27 | H57: =FRCP_y3 -> 2027-28 | I57: =FRCP_y4 -> 2028-29 | J57: =FRCP_y5 -> 2029-30
B58: Insurance | F58: 1000000 | G58: 1000000 | H58: 1000000 | I58: 1100000 | J58: 1100000
B59: End of Life costs | F59: 940000 | G59: 940000 | H59: 940000 | I59: 940000 | J59: 940000
C73: TOTAL | D73: =SUM(D58:D72) -> 0 | E73: 0 | F73: =SUM(F58:F72) -> 1940000 | G73: =SUM(G58:G72) -> 1940000 | H73: =SUM(H58:H72) -> 1940000 | I73: =SUM(I58:I72) -> 2040000 | J73: =SUM(J58:J72) -> 2040000

Sheet 3.2.3 Provisions
B1: REGULATORY REPORTING STATEMENT
B2: =INDEX(dms_TradingNameFull_List,MATCH(dms_TradingName,dms_TradingName_List)) -> Directlink
B3: =IF(SUM(dms_SingleYear_Model)>0,CRY,CONCATENATE("Regulatory period ",FRCP_y1," to ",dms_MultiYear_FinalYear_Result)) -> Regulatory period 2025-26 to 2029-30
B4: 3.2 OPERATING EXPENDITURE
B5: TEMPLATE DATE - OCTOBER 2023 - FINAL RIN
B7: The is ONE table on this worksheet. Each Provision has been grouped for ease of navigation. See the Instructions sheet on how to group and ungroup tables.
B10: 3.2.3 - PROVISIONS
C11: =CONCATENATE("Forecast ($, real ", dms_DollarReal, ")") -> Forecast ($, real June 2025)
C12: =CRCP_y4 -> 2023-24 | D12: =CRCP_y5 -> 2024-25 | E12: =FRCP_y1 -> 2025-26 | F12: =FRCP_y2 -> 2026-27 | G12: =FRCP_y3 -> 2027-28 | H12: =FRCP_y4 -> 2028-29 | I12: =FRCP_y5 -> 2029-30
A13: TOPEX03A | B13: <Provision name>
B14: Brief description of provision
A15: TOPEX0301A | B15: Opening balance (the carrying amount at the beginning of the period)
B16: Additional provisions made in the period, including increases to existing provisions
A17: TOPEX0302A | B17: Opex component
A18: TOPEX0303A | B18: Capex component
A19: TOPEX0304A | B19: Other component
B20: Amounts used (that is, incurred and charged against the provision) during the period
A21: TOPEX0305A | B21: Opex component
A22: TOPEX0306A | B22: Capex component
A23: TOPEX0307A | B23: Other component
B24: Unused amounts reversed during the period
A25: TOPEX0308A | B25: Opex component
A26: TOPEX0309A | B26: Capex component
A27: TOPEX0310A | B27: Other component
B28: The increase during the period in the discounted amount arising from the passage of time and the effect of any change in the discount rate
A29: TOPEX0311A | B29: Opex component
A30: TOPEX0312A | B30: Capex component
A31: TOPEX0313A | B31: Other component
A32: TOPEX0314A | B32: Closing balance (carrying amount at the end of the period)
A33: TOPEX03B | B33: <Provision name>
B34: Brief description of provision
A35: TOPEX0301B | B35: Opening balance (the carrying amount at the beginning of the period)
B36: Additional provisions made in the period, including increases to existing provisions
A37: TOPEX0302B | B37: Opex component
A38: TOPEX0303B | B38: Capex component
A39: TOPEX0304B | B39: Other component
B40: Amounts used (that is, incurred and charged against the provision) during the period
A41: TOPEX0305B | B41: Opex component
A42: TOPEX0306B | B42: Capex component
A43: TOPEX0307B | B43: Other component
B44: Unused amounts reversed during the period
A45: TOPEX0308B | B45: Opex component
A46: TOPEX0309B | B46: Capex component
A47: TOPEX0310B | B47: Other component
B48: The increase during the period in the discounted amount arising from the passage of time and the effect of any change in the discount rate
A49: TOPEX0311B | B49: Opex component
A50: TOPEX0312B | B50: Capex component
A51: TOPEX0313B | B51: Other component
A52: TOPEX0314B | B52: Closing balance (carrying amount at the end of the period)
A53: TOPEX03C | B53: <Provision name>
B54: Brief description of provision
A55: TOPEX0301C | B55: Opening balance (the carrying amount at the beginning of the period)
B56: Additional provisions made in the period, including increases to existing provisions
A57: TOPEX0302C | B57: Opex component
A58: TOPEX0303C | B58: Capex component
A59: TOPEX0304C | B59: Other component
B60: Amounts used (that is, incurred and charged against the provision) during the period
A61: TOPEX0305C | B61: Opex component
A62: TOPEX0306C | B62: Capex component
A63: TOPEX0307C | B63: Other component
B64: Unused amounts reversed during the period
A65: TOPEX0308C | B65: Opex component
A66: TOPEX0309C | B66: Capex component
A67: TOPEX0310C | B67: Other component
B68: The increase during the period in the discounted amount arising from the passage of time and the effect of any change in the discount rate
A69: TOPEX0311C | B69: Opex component
A70: TOPEX0312C | B70: Capex component
A71: TOPEX0313C | B71: Other component
A72: TOPEX0314C | B72: Closing balance (carrying amount at the end of the period)
A73: TOPEX03D | B73: <Provision name>
B74: Brief description of provision
A75: TOPEX0301D | B75: Opening balance (the carrying amount at the beginning of the period)
B76: Additional provisions made in the period, including increases to existing provisions
A77: TOPEX0302D | B77: Opex component
A78: TOPEX0303D | B78: Capex component
A79: TOPEX0304D | B79: Other component
B80: Amounts used (that is, incurred and charged against the provision) during the period
A81: TOPEX0305D | B81: Opex component
A82: TOPEX0306D | B82: Capex component
A83: TOPEX0307D | B83: Other component
B84: Unused amounts reversed during the period
A85: TOPEX0308D | B85: Opex component
A86: TOPEX0309D | B86: Capex component
A87: TOPEX0310D | B87: Other component
B88: The increase during the period in the discounted amount arising from the passage of time and the effect of any change in the discount rate
A89: TOPEX0311D | B89: Opex component
A90: TOPEX0312D | B90: Capex component
A91: TOPEX0313D | B91: Other component
A92: TOPEX0314D | B92: Closing balance (carrying amount at the end of the period)
A93: TOPEX03E | B93: <Provision name>
B94: Brief description of provision
A95: TOPEX0301E | B95: Opening balance (the carrying amount at the beginning of the period)
B96: Additional provisions made in the period, including increases to existing provisions
A97: TOPEX0302E | B97: Opex component
A98: TOPEX0303E | B98: Capex component
A99: TOPEX0304E | B99: Other component
B100: Amounts used (that is, incurred and charged against the provision) during the period
A101: TOPEX0305E | B101: Opex component
A102: TOPEX0306E | B102: Capex component
A103: TOPEX0307E | B103: Other component
B104: Unused amounts reversed during the period
A105: TOPEX0308E | B105: Opex component
A106: TOPEX0309E | B106: Capex component
A107: TOPEX0310E | B107: Other component
B108: The increase during the period in the discounted amount arising from the passage of time and the effect of any change in the discount rate
A109: TOPEX0311E | B109: Opex component
A110: TOPEX0312E | B110: Capex component
A111: TOPEX0313E | B111: Other component
A112: TOPEX0314E | B112: Closing balance (carrying amount at the end of the period)
A113: TOPEX03F | B113: <Provision name>
B114: Brief description of provision
A115: TOPEX0301F | B115: Opening balance (the carrying amount at the beginning of the period)
B116: Additional provisions made in the period, including increases to existing provisions
A117: TOPEX0302F | B117: Opex component
A118: TOPEX0303F | B118: Capex component
A119: TOPEX0304F | B119: Other component
B120: Amounts used (that is, incurred and charged against the provision) during the period
A121: TOPEX0305F | B121: Opex component
A122: TOPEX0306F | B122: Capex component
A123: TOPEX0307F | B123: Other component
B124: Unused amounts reversed during the period
A125: TOPEX0308F | B125: Opex component
A126: TOPEX0309F | B126: Capex component
A127: TOPEX0310F | B127: Other component
B128: The increase during the period in the discounted amount arising from the passage of time and the effect of any change in the discount rate
A129: TOPEX0311F | B129: Opex component
A130: TOPEX0312F | B130: Capex component
A131: TOPEX0313F | B131: Other component
A132: TOPEX0314F | B132: Closing balance (carrying amount at the end of the period)
A133: TOPEX03G | B133: <Provision name>
B134: Brief description of provision
A135: TOPEX0301G | B135: Opening balance (the carrying amount at the beginning of the period)
B136: Additional provisions made in the period, including increases to existing provisions
A137: TOPEX0302G | B137: Opex component
A138: TOPEX0303G | B138: Capex component
A139: TOPEX0304G | B139: Other component
B140: Amounts used (that is, incurred and charged against the provision) during the period
A141: TOPEX0305G | B141: Opex component
A142: TOPEX0306G | B142: Capex component
A143: TOPEX0307G | B143: Other component
B144: Unused amounts reversed during the period
A145: TOPEX0308G | B145: Opex component
A146: TOPEX0309G | B146: Capex component
A147: TOPEX0310G | B147: Other component
B148: The increase during the period in the discounted amount arising from the passage of time and the effect of any change in the discount rate
A149: TOPEX0311G | B149: Opex component
A150: TOPEX0312G | B150: Capex component
A151: TOPEX0313G | B151: Other component
A152: TOPEX0314G | B152: Closing balance (carrying amount at the end of the period)
A153: TOPEX03H | B153: <Provision name>
B154: Brief description of provision
A155: TOPEX0301H | B155: Opening balance (the carrying amount at the beginning of the period)
B156: Additional provisions made in the period, including increases to existing provisions
A157: TOPEX0302H | B157: Opex component
A158: TOPEX0303H | B158: Capex component
A159: TOPEX0304H | B159: Other component
B160: Amounts used (that is, incurred and charged against the provision) during the period
A161: TOPEX0305H | B161: Opex component
A162: TOPEX0306H | B162: Capex component
A163: TOPEX0307H | B163: Other component
B164: Unused amounts reversed during the period
A165: TOPEX0308H | B165: Opex component
A166: TOPEX0309H | B166: Capex component
A167: TOPEX0310H | B167: Other component
B168: The increase during the period in the discounted amount arising from the passage of time and the effect of any change in the discount rate
A169: TOPEX0311H | B169: Opex component
A170: TOPEX0312H | B170: Capex component
A171: TOPEX0313H | B171: Other component
A172: TOPEX0314H | B172: Closing balance (carrying amount at the end of the period)
A173: TOPEX03I | B173: <Provision name>
B174: Brief description of provision
A175: TOPEX0301I | B175: Opening balance (the carrying amount at the beginning of the period)
B176: Additional provisions made in the period, including increases to existing provisions
A177: TOPEX0302I | B177: Opex component
A178: TOPEX0303I | B178: Capex component
A179: TOPEX0304I | B179: Other component
B180: Amounts used (that is, incurred and charged against the provision) during the period
A181: TOPEX0305I | B181: Opex component
A182: TOPEX0306I | B182: Capex component
A183: TOPEX0307I | B183: Other component
B184: Unused amounts reversed during the period
A185: TOPEX0308I | B185: Opex component
A186: TOPEX0309I | B186: Capex component
A187: TOPEX0310I | B187: Other component
B188: The increase during the period in the discounted amount arising from the passage of time and the effect of any change in the discount rate
A189: TOPEX0311I | B189: Opex component
A190: TOPEX0312I | B190: Capex component
A191: TOPEX0313I | B191: Other component
A192: TOPEX0314I | B192: Closing balance (carrying amount at the end of the period)
A193: TOPEX03J | B193: Provision name
B194: Brief description of provision
A195: TOPEX0301J | B195: Opening balance (the carrying amount at the beginning of the period)
B196: Additional provisions made in the period, including increases to existing provisions
A197: TOPEX0302J | B197: Opex component
A198: TOPEX0303J | B198: Capex component
A199: TOPEX0304J | B199: Other component
B200: Amounts used (that is, incurred and charged against the provision) during the period
A201: TOPEX0305J | B201: Opex component
A202: TOPEX0306J | B202: Capex component
A203: TOPEX0307J | B203: Other component
... 169 more rows

Sheet 7.9 STPIS
B1: =(LOOKUP(dms_Model,dms_Model_List,dms_Worksheet_List)) -> REGULATORY REPORTING STATEMENT
B2: =INDEX(dms_TradingNameFull_List,MATCH(dms_TradingName,dms_TradingName_List)) -> Directlink
B3: =IF(SUM(dms_SingleYear_Model)>0,CRY,CONCATENATE("Regulatory period ",FRCP_y1," to ",dms_MultiYear_FinalYear_Result)) -> Regulatory period 2025-26 to 2029-30
B4: 7.9 SERVICE TARGET PERFORMANCE INCENTIVE SCHEME (STPIS)
B5: TEMPLATE DATE - OCTOBER 2023 - FINAL RIN
B7: There are FOUR tables on this worksheet. Each table has been grouped (and sub-grouped) for ease of navigation. See the Instructions sheet on how to group or ungroup tables.
B9: Instructions
B10: =dms_TradingName&" is required to provide the performance actuals for the most recent five years, and the proposed cap, floor and target for the next regulatory control period for the parameters under the service component of the STPIS in table 7.9.1 below." -> Directlink is required to provide the performance actuals for the most recent five years, and the proposed cap, floor and target for the next regulatory control period for the parameters under the service component of the STPIS in table 7.9.1 below.
B12: 7.9.1 - Historical performance and proposed floor, caps and targets for the service component of the STPIS
B13: Parameter | C13: Performance actuals | I13: Average of performance | J13: Floor | K13: Target | L13: Cap | M13: Weighting (% of MAR)
C14: =(LEFT(PRCP_y4,2)&RIGHT(PRCP_y4,2)) -> 2019 | D14: =LEFT(PRCP_y5,2)&RIGHT(PRCP_y5,2) -> 2020 | E14: =(LEFT(CRCP_y1,2)&RIGHT(CRCP_y1,2)) -> 2021 | F14: =(LEFT(CRCP_y2,2)&RIGHT(CRCP_y2,2)) -> 2022 | G14: =(LEFT(CRCP_y3,2)&RIGHT(CRCP_y3,2)) -> 2023 | H14: =(LEFT(CRCP_y4,2)&RIGHT(CRCP_y4,2)) -> 2024
B15: Unplanned outage circuit event rate:
B16: Circuit outage rate - fault | C16: 11 | D16: 8.6667 | E16: 3.8333 | F16: 3.1667 | I16: =+AVERAGE(C16:G16) -> 6.666675 | J16: 13.52 | K16: 9.33 | L16: 5.82 | M16: 0.0075
B17: Circuit outage rate - forced | C17: 0.8333 | D17: 0.0067 | E17: 0.0017 | F17: 0.0017 | I17: =+AVERAGE(C17:G17) -> 0.21085 | J17: 2.77 | K17: 1.47 | L17: 0.15 | M17: 0.005
B18: Loss of supply event frequency (number of events):
B19: > (x) system minutes | I19: =+AVERAGE(C19:G19) -> 
B20: > (y) system minutes | I20: =+AVERAGE(C20:G20) -> 
B21: Average outage duration (minutes): | I21: =+AVERAGE(C21:G21) -> 
B22: Proper operation of equipment (number of events):
B23: Failure of protection system | C23: 4 | D23: - | E23: - | F23: - | I23: =+AVERAGE(C23:G23) -> 4 | J23: 6 | K23: 3 | L23: 0 | M23: 0
B24: Material failure of SCADA | I24: =+AVERAGE(C24:G24) ->  | M24: 0
B25: Incorrect operational isolation of primary or secondary equipment | I25: =+AVERAGE(C25:G25) ->  | M25: 0
B29: 7.9.2 - Proposed priority projects for the network capability incentive parameter
B30: Project ranking | C30: Transmission Circuit / Injection Point | D30: Scope of works | E30: =CONCATENATE(("If applicable, the present value of quantified benefits associated with the project ($, "),CRCP_y5,")") -> If applicable, the present value of quantified benefits associated with the project ($, 2024-25) | F30: =CONCATENATE(("Project cost ($, "),CRCP_y5,")") -> Project cost ($, 2024-25)
F31: =FRCP_y1 -> 2025-26 | G31: =FRCP_y2 -> 2026-27 | H31: =FRCP_y3 -> 2027-28 | I31: =FRCP_y4 -> 2028-29 | J31: =FRCP_y5 -> 2029-30 | K31: Opex | L31: Capex
B32: 1
B33: 2
B34: 3
B35: 4
B36: 5
B37: 6
B38: 7
B39: 8
B40: 9
B41: 10
B42: 11
B43: 12
B44: 13
B45: 14
B46: 15
B47: 16
B52: 7.9.3 – Network limit information
B53: Limit identification | C53: Define limit | D53: Reason for the limit | E53: Is limit addressed by priority project | F53: Supporting information reference
B66: 7.9.4 - Market impact component
B67: Instructions
B68: =dms_TradingName&" is required to provide performance data in accordance with Appendix C of the STPIS for the preceding seven calendar years in table 7.9.4 below. "&dms_TradingName&" is also required to provide relevant information in the MIC workbook attached to Appendix A of the Notice." -> Directlink is required to provide performance data in accordance with Appendix C of the STPIS for the preceding seven calendar years in table 7.9.4 below. Directlink is also required to provide relevant information in the MIC workbook attached to Appendix A of the Notice.
D70: Market impact parameter
D71: Planned outage count(DI) | F71: Unplanned outage count (DI)
B72: Year | C72: Month | D72: without exclusions | E72: with exclusions | F72: without exclusions | G72: with exclusions | H72: Market impact parameters
B73: =LEFT(PRCP_y3,4) -> 2017 | C73: January | D73: 2 | E73: 2 | F73: 400 | G73: 156 | H73: =+E73/12 -> 0.1666666667
B74: 2017 | C74: February | D74: 4 | E74: 4 | F74: 187 | G74: 44 | H74: 0.3333333333
B75: 2017 | C75: March | D75: 0 | E75: 0 | F75: 131 | G75: 126 | H75: 0
B76: 2017 | C76: April | D76: 0 | E76: 0 | F76: 808 | G76: 808 | H76: 0
B77: 2017 | C77: May | D77: 0 | E77: 0 | F77: 0 | G77: 0 | H77: 0
B78: 2017 | C78: June | D78: 28 | E78: 28 | F78: 180 | G78: 180 | H78: 2.333333333
B79: 2017 | C79: July | D79: 0 | E79: 0 | F79: 399 | G79: 399 | H79: 0
B80: 2017 | C80: August | D80: 0 | E80: 0 | F80: 2705 | G80: 2705 | H80: 0
B81: 2017 | C81: September | D81: 0 | E81: 0 | F81: 623 | G81: 623 | H81: 0
B82: 2017 | C82: October | D82: 0 | E82: 0 | F82: 887 | G82: 874 | H82: 0
B83: 2017 | C83: November | D83: 0 | E83: 0 | F83: 423 | G83: 423 | H83: 0
B84: 2017 | C84: December | D84: 326 | E84: 326 | F84: 364 | G84: 364 | H84: 27.16666667
B85: =CONCATENATE("Total ",LEFT(PRCP_y3,4)) -> Total 2017 | D85: =+SUM(D73:D84) -> 360 | E85: =+SUM(E73:E84) -> 360 | F85: =+SUM(F73:F84) -> 7107 | G85: =+SUM(G73:G84) -> 6702 | H85: =+SUM(H73:H84) -> 30
B86: =LEFT(PRCP_y4,4) -> 2018 | C86: January | D86: 0 | E86: 0 | F86: 198 | G86: 182 | H86: =+E86/12 -> 0
B87: 2018 | C87: February | D87: 98 | E87: 98 | F87: 438 | G87: 438 | H87: 8.166666667
B88: 2018 | C88: March | D88: 34 | E88: 34 | F88: 18 | G88: 18 | H88: 2.833333333
B89: 2018 | C89: April | D89: 0 | E89: 0 | F89: 27 | G89: 27 | H89: 0
B90: 2018 | C90: May | D90: 9 | E90: 9 | F90: 123 | G90: 123 | H90: 0.75
B91: 2018 | C91: June | D91: 96 | E91: 96 | F91: 17 | G91: 17 | H91: 8
B92: 2018 | C92: July | D92: 56 | E92: 56 | F92: 44 | G92: 44 | H92: 4.666666667
B93: 2018 | C93: August | D93: 254 | E93: 254 | F93: 60 | G93: 59 | H93: 21.16666667
B94: 2018 | C94: September | D94: 375 | E94: 375 | F94: 36 | G94: 36 | H94: 31.25
B95: 2018 | C95: October | D95: 443 | E95: 443 | F95: 19 | G95: 19 | H95: 36.91666667
B96: 2018 | C96: November | D96: 22 | E96: 22 | F96: 24 | G96: 24 | H96: 1.833333333
B97: 2018 | C97: December | D97: 1 | E97: 1 | F97: 79 | G97: 79 | H97: 0.08333333333
B98: =CONCATENATE("Total ", LEFT(PRCP_y4,4)) -> Total 2018 | D98: =+SUM(D86:D97) -> 1388 | E98: =+SUM(E86:E97) -> 1388 | F98: =+SUM(F86:F97) -> 1083 | G98: =+SUM(G86:G97) -> 1066 | H98: =+SUM(H86:H97) -> 115.6666667
B99: =LEFT(PRCP_y5,4) -> 2019 | C99: January | D99: 6 | E99: 6 | F99: 161 | G99: 161 | H99: =+E99/12 -> 0.5
B100: 2019 | C100: February | D100: 75 | E100: 75 | F100: 57 | G100: 57 | H100: 6.25
B101: 2019 | C101: March | D101: 58 | E101: 58 | F101: 22 | G101: 22 | H101: 4.833333333
B102: 2019 | C102: April | D102: 131 | E102: 131 | F102: 46 | G102: 46 | H102: 10.91666667
B103: 2019 | C103: May | D103: 93 | E103: 93 | F103: 92 | G103: 92 | H103: 7.75
B104: 2019 | C104: June | D104: 61 | E104: 61 | F104: 0 | G104: 0 | H104: 5.083333333
B105: 2019 | C105: July | D105: 161 | E105: 161 | F105: 54 | G105: 54 | H105: 13.41666667
B106: 2019 | C106: August | D106: 1326 | E106: 1326 | F106: 9 | G106: 9 | H106: 110.5
B107: 2019 | C107: September | D107: 2277 | E107: 2277 | F107: 67 | G107: 50 | H107: 189.75
B108: 2019 | C108: October | D108: 820 | E108: 820 | F108: 448 | G108: 448 | H108: 68.33333333
B109: 2019 | C109: November | D109: 0 | E109: 0 | F109: 347 | G109: 347 | H109: 0
B110: 2019 | C110: December | D110: 0 | E110: 0 | F110: 0 | G110: 0 | H110: 0
B111: =CONCATENATE("Total ", LEFT(PRCP_y5,4)) -> Total 2019 | D111: =+SUM(D99:D110) -> 5008 | E111: =+SUM(E99:E110) -> 5008 | F111: =+SUM(F99:F110) -> 1303 | G111: =+SUM(G99:G110) -> 1286 | H111: =+SUM(H99:H110) -> 417.3333333
B112: =LEFT(CRCP_y1,4) -> 2020 | C112: January | D112: 0 | E112: 0 | F112: 2 | G112: 2 | H112: =+E112/12 -> 0
B113: 2020 | C113: February | D113: 0 | E113: 0 | F113: 100 | G113: 100 | H113: 0
B114: 2020 | C114: March | D114: 79 | E114: 79 | F114: 1188 | G114: 1188 | H114: 6.583333333
B115: 2020 | C115: April | D115: 0 | E115: 0 | F115: 251 | G115: 251 | H115: 0
B116: 2020 | C116: May | D116: 42 | E116: 42 | F116: 369 | G116: 369 | H116: 3.5
B117: 2020 | C117: June | D117: 101 | E117: 101 | F117: 0 | G117: 0 | H117: 8.416666667
B118: 2020 | C118: July | D118: 31 | E118: 31 | F118: 354 | G118: 354 | H118: 2.583333333
B119: 2020 | C119: August | D119: 128 | E119: 128 | F119: 1167 | G119: 1167 | H119: 10.66666667
B120: 2020 | C120: September | D120: 0 | E120: 0 | F120: 75 | G120: 75 | H120: 0
B121: 2020 | C121: October | D121: 116 | E121: 116 | F121: 278 | G121: 278 | H121: 9.666666667
B122: 2020 | C122: November | D122: 191 | E122: 191 | F122: 39 | G122: 39 | H122: 15.91666667
B123: 2020 | C123: December | D123: 50 | E123: 50 | F123: 17 | G123: 17 | H123: 4.166666667
B124: =CONCATENATE("Total ", LEFT(CRCP_y1,4)) -> Total 2020 | D124: =+SUM(D112:D123) -> 738 | E124: =+SUM(E112:E123) -> 738 | F124: =+SUM(F112:F123) -> 3840 | G124: =+SUM(G112:G123) -> 3840 | H124: =+SUM(H112:H123) -> 61.5
B125: =LEFT(CRCP_y2,4) -> 2021 | C125: January | D125: 20 | E125: 20 | F125: 0 | G125: 0 | H125: =+E125/12 -> 1.666666667
B126: 2021 | C126: February | D126: 0 | E126: 0 | F126: 0 | G126: 0 | H126: 0
B127: 2021 | C127: March | D127: 0 | E127: 0 | F127: 0 | G127: 0 | H127: 0
B128: 2021 | C128: April | D128: 0 | E128: 0 | F128: 1 | G128: 1 | H128: 0
B129: 2021 | C129: May | D129: 18 | E129: 0 | F129: 14 | G129: 0 | H129: 0
B130: 2021 | C130: June | D130: 3 | E130: 3 | F130: 74 | G130: 74 | H130: 0.25
B131: 2021 | C131: July | D131: 244 | E131: 244 | F131: 187 | G131: 187 | H131: 20.33333333
B132: 2021 | C132: August | D132: 125 | E132: 115 | F132: 289 | G132: 289 | H132: 9.583333333
B133: 2021 | C133: September | D133: 100 | E133: 37 | F133: 636 | G133: 636 | H133: 3.083333333
B134: 2021 | C134: October | D134: 635 | E134: 635 | F134: 1 | G134: 1 | H134: 52.91666667
B135: 2021 | C135: November | D135: 87 | E135: 87 | F135: 41 | G135: 41 | H135: 7.25
B136: 2021 | C136: December | D136: 0 | E136: 0 | F136: 6 | G136: 6 | H136: 0
B137: =CONCATENATE("Total ", LEFT(CRCP_y2,4)) -> Total 2021 | D137: =+SUM(D125:D136) -> 1232 | E137: =+SUM(E125:E136) -> 1141 | F137: =+SUM(F125:F136) -> 1249 | G137: =+SUM(G125:G136) -> 1235 | H137: =+SUM(H125:H136) -> 95.08333333
B138: =LEFT(CRCP_y3,4) -> 2022 | C138: January | D138: 0 | E138: 0 | F138: 7 | G138: 7 | H138: =+E138/12 -> 0
B139: 2022 | C139: February | D139: 63 | E139: 63 | F139: 4 | G139: 4 | H139: 5.25
B140: 2022 | C140: March | D140: 79 | E140: 79 | F140: 203 | G140: 203 | H140: 6.583333333
B141: 2022 | C141: April | D141: 102 | E141: 102 | F141: 84 | G141: 84 | H141: 8.5
B142: 2022 | C142: May | D142: 34 | E142: 34 | F142: 0 | G142: 0 | H142: 2.833333333
B143: 2022 | C143: June | D143: 142 | E143: 142 | F143: 18 | G143: 3 | H143: 11.83333333
B144: 2022 | C144: July | D144: 206 | E144: 206 | F144: 231 | G144: 231 | H144: 17.16666667
B145: 2022 | C145: August | D145: 144 | E145: 144 | F145: 12 | G145: 12 | H145: 12
B146: 2022 | C146: September | D146: 20 | E146: 20 | F146: 0 | G146: 0 | H146: 1.666666667
B147: 2022 | C147: October | D147: 4 | E147: 4 | F147: 0 | G147: 0 | H147: 0.3333333333
B148: 2022 | C148: November | D148: 112 | E148: 112 | F148: 156 | G148: 156 | H148: 9.333333333
B149: 2022 | C149: December | D149: 39 | E149: 39 | F149: 1072 | G149: 1072 | H149: 3.25
B150: =CONCATENATE("Total ", LEFT(CRCP_y3,4)) -> Total 2022 | D150: =+SUM(D138:D149) -> 945 | E150: =+SUM(E138:E149) -> 945 | F150: =+SUM(F138:F149) -> 1787 | G150: =+SUM(G138:G149) -> 1772 | H150: =+SUM(H138:H149) -> 78.75
B151: =LEFT(CRCP_y4,4) -> 2023 | C151: January | H151: =+E151/12 -> 0
B152: 2023 | C152: February | H152: 0
B153: 2023 | C153: March | H153: 0
B154: 2023 | C154: April | H154: 0
B155: 2023 | C155: May | H155: 0
B156: 2023 | C156: June | H156: 0
B157: 2023 | C157: July | H157: 0
B158: 2023 | C158: August | H158: 0
B159: 2023 | C159: September | H159: 0
B160: 2023 | C160: October | H160: 0
B161: 2023 | C161: November | H161: 0
B162: 2023 | C162: December | H162: 0
B163: =CONCATENATE("Total ", LEFT(CRCP_y4,4)) -> Total 2023 | D163: =+SUM(D151:D162) -> 0 | E163: =+SUM(E151:E162) -> 0 | F163: =+SUM(F151:F162) -> 0 | G163: =+SUM(G151:G162) -> 0 | H163: =+SUM(H151:H162) -> 0
B164: =LEFT(CRCP_y5,4) -> 2024 | C164: January | H164: =+E164/12 -> 0
B165: 2024 | C165: February | H165: 0
B166: 2024 | C166: March | H166: 0
B167: 2024 | C167: April | H167: 0
B168: 2024 | C168: May | H168: 0
B169: 2024 | C169: June | H169: 0
B170: 2024 | C170: July | H170: 0
B171: 2024 | C171: August | H171: 0
B172: 2024 | C172: September | H172: 0
B173: 2024 | C173: October | H173: 0
B174: 2024 | C174: November | H174: 0
B175: 2024 | C175: December | H175: 0
B176: =CONCATENATE("Total ", LEFT(CRCP_y5,4)) -> Total 2024 | D176: =+SUM(D164:D175) -> 0 | E176: =+SUM(E164:E175) -> 0 | F176: =+SUM(F164:F175) -> 0 | G176: =+SUM(G164:G175) -> 0 | H176: =+SUM(H164:H175) -> 0

Sheet 7.1 Policies and Procedures
B1: =(LOOKUP(dms_Model,dms_Model_List,dms_Worksheet_List)) -> REGULATORY REPORTING STATEMENT
B2: =INDEX(dms_TradingNameFull_List,MATCH(dms_TradingName,dms_TradingName_List)) -> Directlink
B3: =IF(SUM(dms_SingleYear_Model)>0,CRY,CONCATENATE("Regulatory period ",FRCP_y1," to ",dms_MultiYear_FinalYear_Result)) -> Regulatory period 2025-26 to 2029-30
B4: 7.1 PLANS, POLICIES, PROCEDURES AND STRATEGIES
B5: TEMPLATE DATE - OCTOBER 2023 - FINAL RIN
B7: Instructions
B8: =CONCATENATE(dms_TradingName, " must list and provide a brief description of key internal plans, "&"policies, procedures or strategies that are used by it to plan and conduct its day to day operations and that have been relied upon in the development of its regulatory proposal. "&dms_TradingName," must identify any internal plans, policies, procedures and strategies that have changed in the current regulatory control period "&"or that are expected to change before the next regulatory control period where the change has been identified as a step change.") -> Directlink must list and provide a brief description of key internal plans, policies, procedures or strategies that are used by it to plan and conduct its day to day operations and that have been relied upon in the development of its regulatory proposal. Directlink must identify any internal plans, policies, procedures and strategies that have changed in the current regulatory control period or that are expected to change before the next regulatory control period where the change has been identified as a step change.
B12: 7.1.1 - PLANS, POLICIES, PROCEDURES AND STRATEGIES
C13: Brief description | D13: Relevance to regulatory proposal | E13: Expenditure impact
C14: Description of the plan, policy, procedure or strategy. | D14: Identify the element of the proposal/supporting documents that the policy, plan, procedure or strategy is relevant to e.g. replacement capex, capacity utilisation thresholds, opex | E14: Is this policy, plan or procedure identified in the response to section 4 'Step Changes' of the notice (yes or no)?
B15: Corporate
B16: APA Group Procurement Policy | C16: APA policy to ensure robust procurement practises are maintained | D16: Replacement Capex | E16: No
B19: Governance framework
B20: MOMSCA (Management, Operations and Maintenance and Commercial Services Agreement) | C20: Outlines the agreement between EII and APA to deliver the asset managemet services for Directlink | D20: Replacement Capex | E20: Yes
B37: Accounting policies, procedures and methodologies (including a capitalisation policy, depreciation policy and an approved expenditure allocation methodology)
B38: Accounting Policy Property Plant Equipment | C38: APA policy for the recognition and measurement of property, plant and equipment. | D38: Replacement Capex | E38: No
B41: Asset management plan or equivalent documentation
B42: Asset Management Policies
B43: APA Group Procurement Policy | C43: APA policy to ensure robust procurement practises are maintained | D43: Replacement Capex | E43: No
B45: Asset Management Strategies
B46: Directlink Asset Management Plan | C46: Asset specific asset management plan that outlines the asset strategy and specific CAPEX required to deliver on strategy | D46: Replacement Capex | E46: No
B47: Directlink Asset Performance and Lifecycle Plan | C47: Outlines the process used to deliver the asset management plan | D47: Replacement Capex | E47: No
B50: Asset Management Plans
B51: Operations Environmental Management plan (DL-DO-05). | C51: Plan for APA operations to ensure adherence to relevant environmental legislation. | D51: Replacement Capex | E51: No
B52: Emergency Response Management Plan (320-PL-ER-0001 | C52: Plan for APA operations to manage emergency response planning for an asset. | D52: Replacement Capex | E52: No
B53: 330-PL-CMP-2004 - Emergency Response Plan; | C53: Plan for APA operations to respond in the event of an emergency | D53: Replacement Capex | E53: No
B54: 330-PR-OM-0006 - Response to a Serious Electrical Accident | C54: Plan for APA operations to respond to an electrical incident. | D54: Replacement Capex | E54: No
B55: 330-PR-OM-0007 - Response to a Serious Electrical Accident – External. | C55: Plan for APA operations to respond to an electrical incident on external Directlink connected assets. | D55: Replacement Capex | E55: No
B56: 320-PL-ER-0016 - Bushfire Management Plan | C56: Plan for prevention of causes and management of the impact of bushfires. | D56: Replacement Capex | E56: No
B74: Capital expenditure policies and procedures (including capex approval policies and procedures and replacement policy)
B79: Internal standards for network planning, design, maintenance and operation
B159: Procurement and contracting out policies
B164: Information technology policies or strategies
B201: Demand management policies or strategies
B205: Self insurance guidelines or policy
B210: Land and easement acquisition polices
B215: Asset security plans and policies
B226: Disaster recovery policy
B227: <insert relevant policy, plan, strategy etc>

Sheet 8.2 Capex
B1: =IF(dms_DataQuality="backcast",INDEX(dms_Worksheet_List,MATCH(dms_Model,dms_Model_List))&" BACKCAST",INDEX(dms_Worksheet_List,MATCH(dms_Model,dms_Model_List))) -> REGULATORY REPORTING STATEMENT
B2: =INDEX(dms_TradingNameFull_List,MATCH(dms_TradingName,dms_TradingName_List)) -> Directlink
B3: =IF(SUM(dms_SingleYear_Model)>0,CRY,CONCATENATE("Regulatory period ",FRCP_y1," to ",dms_MultiYear_FinalYear_Result)) -> Regulatory period 2025-26 to 2029-30
B4: 8.2 - CAPEX
B5: TEMPLATE DATE - OCTOBER 2023 - FINAL RIN
B7: 8.2.7 - IMMEDIATE EXPENSING OF CAPEX
B8: ESTIMATED - AS COMMISSIONED
C9: ($, nominal) | F9: =CONCATENATE("Forecast ($, real ", dms_DollarReal, ")") -> Forecast ($, real June 2025)
B10: Asset class | C10: 2018-19 | D10: 2019-20 | E10: 2020-21 | F10: 2021-22 | G10: 2022-23
B11: Transmission assets | C11: 0 | D11: 0 | E11: 0
B12: Transmission Determination Costs | C12: 0 | D12: 0 | E12: 0
B13: Easements | C13: 0 | D13: 0 | E13: 0
B14: Land | C14: 0 | D14: 0 | E14: 0
B15: Buildings | C15: 0 | D15: 0 | E15: 0
B61: Total | C61: =SUM(C11:C60) -> 0 | D61: =SUM(D11:D60) -> 0 | E61: =SUM(E11:E60) -> 0 | F61: =SUM(F11:F60) -> 0 | G61: =SUM(G11:G60) -> 0

Sheet 7.2 Contingent projects
B1: =(LOOKUP(dms_Model,dms_Model_List,dms_Worksheet_List)) -> REGULATORY REPORTING STATEMENT
B2: =INDEX(dms_TradingNameFull_List,MATCH(dms_TradingName,dms_TradingName_List)) -> Directlink
B3: =IF(SUM(dms_SingleYear_Model)>0,CRY,CONCATENATE("Regulatory period ",FRCP_y1," to ",dms_MultiYear_FinalYear_Result)) -> Regulatory period 2025-26 to 2029-30
B4: 7.2 CONTINGENT PROJECTS
B5: TEMPLATE DATE - OCTOBER 2023 - FINAL RIN
B8: Instructions
B9: =CONCATENATE(dms_TradingName," is required to populate all input cells (yellow) in table 7.2.1 presented below. Additional rows may be added by ",dms_TradingName," if required." ) -> Directlink is required to populate all input cells (yellow) in table 7.2.1 presented below. Additional rows may be added by Directlink if required.
B11: 7.2.1 - PROPOSED CONTINGENT PROJECTS FOR THE FORTHCOMING REGULATORY CONTROL PERIOD
B12: Proposed contingent project name | C12: Proposed contingent capital expenditure ($, nominal) | D12: Proposed trigger events | E12: =CONCATENATE("Proposed MAR for ", FRCP_y1," ($, nominal)") -> Proposed MAR for 2025-26 ($, nominal) | F12: =CONCATENATE("5 per cent of the ", FRCP_y1," ($, nominal) MAR") -> 5 per cent of the 2025-26 ($, nominal) MAR
F13: =+E13*0.05 -> 0
E14: =+$E$13 -> 0 | F14: =+E14*0.05 -> 0
E15: =+$E$13 -> 0 | F15: 0
E16: 0 | F16: 0
E17: 0 | F17: 0
E18: 0 | F18: 0
E19: 0 | F19: 0
E20: 0 | F20: 0
E21: 0 | F21: 0
E22: 0 | F22: 0
E23: 0 | F23: 0
E24: 0 | F24: 0
E25: 0 | F25: 0
E26: 0 | F26: 0
E27: 0 | F27: 0
E28: 0 | F28: 0
E29: 0 | F29: 0
E30: 0 | F30: 0
E31: 0 | F31: 0
E32: 0 | F32: 0

Sheet 7.3 Obligations
B1: =(LOOKUP(dms_Model,dms_Model_List,dms_Worksheet_List)) -> REGULATORY REPORTING STATEMENT
B2: =INDEX(dms_TradingNameFull_List,MATCH(dms_TradingName,dms_TradingName_List)) -> Directlink
B3: =IF(SUM(dms_SingleYear_Model)>0,CRY,CONCATENATE("Regulatory period ",FRCP_y1," to ",dms_MultiYear_FinalYear_Result)) -> Regulatory period 2025-26 to 2029-30
B4: 7.3 OBLIGATIONS, REQUIREMENTS & STANDARDS
B5: TEMPLATE DATE - OCTOBER 2023 - FINAL RIN
B7: There is ONE table on this worksheet. It has been sub-grouped for ease of navigation. See the Instructions sheet on how to group or ungroup data.
B9: Instructions
B10: =CONCATENATE("Outline those obligations and requirements that ",dms_TradingName, " identifies as having a material impact on expenditure requirements.") -> Outline those obligations and requirements that Directlink identifies as having a material impact on expenditure requirements.
B13: 7.3.1 - OBLIGATIONS OR REQUIREMENTS
C14: Brief description | D14: Relevance to regulatory proposal | E14: Expenditure impact
C15: Description of relevant obligations or requirements within the instrument (e.g. safety obligations, reliability targets) | D15: Identify what element of the proposal/supporting documents the obligation or requirement is relevant to e.g. replacement capex, capacity utilisation thresholds, opex | E15: Is the obligation or requirement identified in the response to section 4 'Step Changes' of the notice (yes or no)?
B16: Legislation
B17: National electricity rules | C17: Defines Directlink's rules for participation in the National Electricity Market. | D17: Compliance obligations captured in OPEX and CAPEX costs | E17: No
B18: National electricity laws | C18: Defines Directlink's laws for participation in the National Electricity Market. | D18: Compliance obligations captured in OPEX and CAPEX costs | E18: No
B19: Independent Pricing and Regulatory Tribunal Act 1992 (IPART Act) NSW | C19: Act enables IPART to ensure compliance to relevant licenses and technical regulations for electricity transmission in NSW | D19: Compliance obligations captured in OPEX and CAPEX costs | E19: No
B20: Work Health and Safety Act and Regulation 2011 NSW | C20: Defines requirements for envi work practises and reporting in NSW | D20: Compliance obligations captured in OPEX and CAPEX costs | E20: No
B21: Protection of the Environment Operations Act 1997 NSW | C21: Defines requirements for environmental work practises in NSW | D21: Compliance obligations captured in OPEX and CAPEX costs | E21: No
B22: · Electricity Supply Act 1995; | C22: Defines requirements for electrical supply performance in NSW | D22: Compliance obligations captured in OPEX and CAPEX costs | E22: No
B23: · Electricity Supply (General) Regulation 2014; | C23: as above | D23: Compliance obligations captured in OPEX and CAPEX costs | E23: No
B24: · Electricity Supply (Safety and Network Management) Regulation 2014; | C24: as above | D24: Compliance obligations captured in OPEX and CAPEX costs | E24: No
B25: · Security of Critical Infrastructure Act 2018 (Cth). | C25: Defines Directlink's requirement to ensure security of critical infrastrucutre is managed and risk of security breaches is reduced to as low as reasonable practicable. | D25: Compliance obligations captured in OPEX and CAPEX costs | E25: Yes
B228: Licences
B233: Rules
B238: Orders
B242: Codes
B258: Guidelines
B297: Default agreements
B302: Other

Sheet 7.4 Shared Assets
B1: =(LOOKUP(dms_Model,dms_Model_List,dms_Worksheet_List)) -> REGULATORY REPORTING STATEMENT
B2: =INDEX(dms_TradingNameFull_List,MATCH(dms_TradingName,dms_TradingName_List)) -> Directlink
B3: =IF(SUM(dms_SingleYear_Model)>0,CRY,CONCATENATE("Regulatory period ",FRCP_y1," to ",dms_MultiYear_FinalYear_Result)) -> Regulatory period 2025-26 to 2029-30
B4: 7.4 SHARED ASSETS
B5: TEMPLATE DATE - OCTOBER 2023 - FINAL RIN
B7: 7.4.1 - TOTAL UNREGULATED REVENUE EARNED WITH SHARED ASSETS
B8: Name of shared asset unregulated service | C8: Description of shared assets used to provide the service | D8: Shared asset unregulated revenue ($, nominal) | L8: =CONCATENATE("Shared asset unregulated revenue ($, real ", dms_DollarReal,")") -> Shared asset unregulated revenue ($, real June 2025)
D9: =PRCP_y1 -> 2015-16 | E9: =PRCP_y2 -> 2016-17 | F9: =PRCP_y3 -> 2017-18 | G9: =PRCP_y4 -> 2018-19 | H9: =PRCP_y5 -> 2019-20 | I9: =CRCP_y1 -> 2020-21 | J9: =CRCP_y2 -> 2021-22 | K9: =CRCP_y3 -> 2022-23 | L9: =CRCP_y4 -> 2023-24 | M9: =CRCP_y5 -> 2024-25 | N9: =FRCP_y1 -> 2025-26 | O9: =FRCP_y2 -> 2026-27 | P9: =FRCP_y3 -> 2027-28 | Q9: =FRCP_y4 -> 2028-29 | R9: =FRCP_y5 -> 2029-30 | S9: =CONCATENATE("Total ",FRCP_y1, " to ", FRCP_y5) -> Total 2025-26 to 2029-30
S10: =SUM(N10:R10) -> 0
S11: =SUM(N11:R11) -> 0
S12: 0
S13: 0
S14: 0
S15: 0
S16: 0
S17: 0
S18: 0
S19: 0
S20: 0
S21: =SUM(N21:R21) -> 0
S22: =SUM(N22:R22) -> 0
S23: =SUM(N23:R23) -> 0
S24: =SUM(N24:R24) -> 0
B26: 7.4.2 - SHARED ASSET UNREGULATED SERVICES - APPORTIONMENT METHODOLOGY
B27: Name of shared asset unregulated service for which revenues were apportioned | C27: Apportionment methodology

Sheet AER CF (hidden)
B1: AER CONDITIONAL FORMATTING
B3: CELLS FLAGED "Y" and greyed out will be greyed out in the worksheets.
B4: CONDITIONAL FORMATTING MAP
F5: =INDEX(dms_CF_3.6.1, MATCH(dms_TradingName,dms_CF_TradingName))="Y" | G5: =INDEX(dms_CF_3.6.5, MATCH(dms_TradingName,dms_CF_TradingName))="Y" | H5: =INDEX(dms_CF_3.6.6.1, MATCH(dms_TradingName,dms_CF_TradingName))="Y" | I5: =INDEX(dms_CF_3.6.6.2, MATCH(dms_TradingName,dms_CF_TradingName))="Y" | J5: =INDEX(dms_CF_3.6.6.3, MATCH(dms_TradingName,dms_CF_TradingName))="Y" | K5: =INDEX(dms_CF_3.6.7.1, MATCH(dms_TradingName,dms_CF_TradingName))="Y" | L5: =INDEX(dms_CF_3.6.7.2, MATCH(dms_TradingName,dms_CF_TradingName))="Y" | M5: =INDEX(dms_CF_3.6.7.3, MATCH(dms_TradingName,dms_CF_TradingName))="Y" | N5: =INDEX(dms_CF_3.6.7.4, MATCH(dms_TradingName,dms_CF_TradingName))="Y" | O5: =INDEX(dms_CF_3.6.8, MATCH(dms_TradingName,dms_CF_TradingName))="Y" | P5: =INDEX(dms_CF_4.1, MATCH(dms_TradingName,dms_CF_TradingName))="Y" | Q5: =INDEX(dms_CF_6.8, MATCH(dms_TradingName,dms_CF_TradingName))="Y" | R5: =INDEX(dms_CF_7.12, MATCH(dms_TradingName,dms_CF_TradingName))="Y" | S5: =INDEX(dms_CF_8.1_A, MATCH(dms_TradingName,dms_CF_TradingName))="Y" | T5: =INDEX(dms_CF_8.1_B, MATCH(dms_TradingName,dms_CF_TradingName))="Y" | U5: =INDEX(dms_CF_8.1_Neg, MATCH(dms_TradingName,dms_CF_TradingName))="Y" -> TRUE | V5: =INDEX(dms_CF_4.4.1_Neg, MATCH(dms_TradingName,dms_CF_TradingName))="Y" | Y5: =INDEX(dms_CF_F10, MATCH(dms_TradingName,dms_CF_TradingName))="Y"
B6: dms_CF_TradingName | C6: JurisdictionList | D6: Sector | E6: Segment | F6: dms_CF_3.6.1 | G6: dms_CF_3.6.5 | H6: dms_CF_3.6.6.1 | I6: dms_CF_3.6.6.2 | J6: dms_CF_3.6.6.3 | K6: dms_CF_3.6.7.1 | L6: dms_CF_3.6.7.2 | M6: dms_CF_3.6.7.3 | N6: dms_CF_3.6.7.4 | O6: dms_CF_3.6.8 | P6: dms_CF_4.1 | Q6: dms_CF_6.8 (set from dms_MAIFI_flag) | R6: dms_CF_7.12 | S6: dms_CF_8.1_A (and 8.4) | T6: dms_CF_8.1_B (and 8.4) | U6: dms_CF_8.1_Neg (and 8.4) | V6: dms_CF_4.4.1 | W6: dms_CF_MAIFI_flag (set from dms_MAIFI_flag) | X6: 9.5 TUOS (set from Jurisdiction) | Y6: dms_CF_F10
B7: Amadeus | C7: NT | D7: Gas | E7: Transmission | F7: - | G7: - | H7: - | I7: - | J7: - | K7: - | L7: - | M7: - | N7: - | O7: - | P7: - | Q7: - | R7: - | S7: - | T7: - | U7: - | V7: - | W7: - | X7: - | Y7: -
B8: APA GasNet | C8: Vic | D8: Gas | E8: Transmission | F8: - | G8: - | H8: - | I8: - | J8: - | K8: - | L8: - | M8: - | N8: - | O8: - | P8: - | Q8: - | R8: - | S8: - | T8: - | U8: - | V8: - | W8: - | X8: - | Y8: -
B9: Ausgrid | C9: NSW | D9: Electricity | E9: Distribution | G9: Y | H9: N | I9: N | J9: N | K9: N | L9: N | M9: N | N9: Y | O9: N | P9: N | Q9: =IFERROR(IF(dms_MAIFI_flag="Yes","N","Y"),"Y") -> Y | R9: Y | S9: N | T9: Y | U9: Y | V9: N | W9: =IFERROR(LEFT(dms_MAIFI_flag),"N") -> N | X9: =IF('AER CF'!$C7="Vic","Y","N") -> N
B10: Ausgrid (Tx Assets) | C10: NSW | D10: Electricity | E10: Distribution | G10: Y | H10: N | I10: N | J10: N | K10: N | L10: N | M10: N | N10: Y | O10: N | P10: N | Q10: =IFERROR(IF(dms_MAIFI_flag="Yes","N","Y"),"Y") -> Y | R10: Y | S10: N | T10: Y | U10: Y | V10: N | W10: =IFERROR(LEFT(dms_MAIFI_flag),"N") -> N | X10: =IF('AER CF'!$C8="Vic","Y","N") -> Y
B11: AusNet (D) | C11: Vic | D11: Electricity | E11: Distribution | G11: N | H11: N | K11: N | L11: N | M11: N | N11: N | O11: N | P11: N | Q11: =IFERROR(IF(dms_MAIFI_flag="Yes","N","Y"),"Y") -> Y | R11: N | S11: N | T11: N | U11: Y | V11: N | W11: =IFERROR(LEFT(dms_MAIFI_flag),"N") -> N | X11: =IF('AER CF'!$C9="Vic","Y","N") -> N
B12: AusNet (T) | C12: Vic | D12: Electricity | E12: Transmission | G12: N | K12: N | L12: N | M12: N | N12: N | O12: N | P12: Y | Q12: =IFERROR(IF(dms_MAIFI_flag="Yes","N","Y"),"Y") -> Y | R12: N | S12: N | T12: N | U12: Y | V12: N | W12: =IFERROR(LEFT(dms_MAIFI_flag),"N") -> N | X12: =IF('AER CF'!$C10="Vic","Y","N") -> N
B13: Australian Distribution Co. | C13: NSW | D13: Electricity | E13: Distribution | F13: N | G13: N | H13: N | I13: N | K13: N | L13: N | M13: N | N13: N | O13: N | P13: N | Q13: =IFERROR(IF(dms_MAIFI_flag="Yes","N","Y"),"Y") -> Y | R13: N | S13: N | T13: N | U13: N | V13: N | W13: =IFERROR(LEFT(dms_MAIFI_flag),"N") -> N | X13: =IF('AER CF'!$C13="Vic","Y","N") -> N
B14: Australian Distribution Co. (Vic) | C14: Vic | D14: Electricity | E14: Distribution | F14: N | G14: N | H14: N | I14: N | K14: N | L14: N | M14: N | N14: N | O14: N | P14: N | Q14: =IFERROR(IF(dms_MAIFI_flag="Yes","N","Y"),"Y") -> Y | R14: N | S14: N | T14: N | U14: N | V14: N | W14: =IFERROR(LEFT(dms_MAIFI_flag),"N") -> N | X14: =IF('AER CF'!$C14="Vic","Y","N") -> Y
B15: CitiPower | C15: Vic | D15: Electricity | E15: Distribution | G15: N | H15: N | K15: N | L15: N | M15: N | N15: N | O15: N | P15: N | Q15: =IFERROR(IF(dms_MAIFI_flag="Yes","N","Y"),"Y") -> Y | R15: N | S15: N | T15: N | U15: Y | V15: N | W15: =IFERROR(LEFT(dms_MAIFI_flag),"N") -> N | X15: =IF('AER CF'!$C15="Vic","Y","N") -> Y
B16: Directlink | C16: Qld | D16: Electricity | E16: Transmission | G16: N | K16: N | L16: N | M16: N | N16: N | O16: N | P16: - | Q16: =IFERROR(IF(dms_MAIFI_flag="Yes","N","Y"),"Y") -> Y | R16: N | S16: N | T16: Y | U16: Y | V16: N | W16: =IFERROR(LEFT(dms_MAIFI_flag),"N") -> N | X16: =IF('AER CF'!$C16="Vic","Y","N") -> N
B17: ElectraNet | C17: SA | D17: Electricity | E17: Transmission | G17: N | K17: N | L17: N | M17: N | N17: N | O17: N | P17: - | Q17: =IFERROR(IF(dms_MAIFI_flag="Yes","N","Y"),"Y") -> Y | R17: N | S17: N | T17: Y | U17: Y | V17: N | W17: =IFERROR(LEFT(dms_MAIFI_flag),"N") -> N | X17: =IF('AER CF'!$C17="Vic","Y","N") -> N
B18: Endeavour Energy | C18: NSW | D18: Electricity | E18: Distribution | G18: Y | H18: N | I18: Y | J18: Y | K18: N | L18: N | M18: N | N18: Y | O18: N | P18: N | Q18: =IFERROR(IF(dms_MAIFI_flag="Yes","N","Y"),"Y") -> Y | R18: Y | S18: N | T18: Y | U18: Y | V18: Y | W18: =IFERROR(LEFT(dms_MAIFI_flag),"N") -> N | X18: =IF('AER CF'!$C18="Vic","Y","N") -> N
B19: Energex | C19: Qld | D19: Electricity | E19: Distribution | G19: Y | H19: N | K19: N | L19: N | M19: N | N19: N | O19: N | P19: N | Q19: =IFERROR(IF(dms_MAIFI_flag="Yes","N","Y"),"Y") -> Y | R19: Y | S19: N | T19: Y | U19: Y | V19: Y | W19: =IFERROR(LEFT(dms_MAIFI_flag),"N") -> N | X19: =IF('AER CF'!$C19="Vic","Y","N") -> N
B20: Ergon Energy | C20: Qld | D20: Electricity | E20: Distribution | G20: Y | H20: N | I20: Y | J20: Y | K20: N | L20: N | M20: N | N20: N | O20: N | P20: N | Q20: =IFERROR(IF(dms_MAIFI_flag="Yes","N","Y"),"Y") -> Y | R20: Y | S20: N | T20: Y | U20: Y | V20: N | W20: =IFERROR(LEFT(dms_MAIFI_flag),"N") -> N | X20: =IF('AER CF'!$C20="Vic","Y","N") -> N
B21: Essential Energy | C21: NSW | D21: Electricity | E21: Distribution | G21: Y | H21: N | I21: Y | J21: Y | K21: N | L21: N | M21: N | N21: Y | O21: N | P21: N | Q21: =IFERROR(IF(dms_MAIFI_flag="Yes","N","Y"),"Y") -> Y | R21: Y | S21: N | T21: Y | U21: Y | V21: N | W21: =IFERROR(LEFT(dms_MAIFI_flag),"N") -> N | X21: =IF('AER CF'!$C21="Vic","Y","N") -> N
B22: Evoenergy Distribution | C22: ACT | D22: Electricity | E22: Distribution | G22: Y | H22: N | I22: Y | J22: Y | K22: Y | L22: Y | M22: N | N22: Y | O22: N | P22: Y | Q22: =IFERROR(IF(dms_MAIFI_flag="Yes","N","Y"),"Y") -> Y | R22: Y | S22: N | T22: Y | U22: Y | V22: N | W22: =IFERROR(LEFT(dms_MAIFI_flag),"N") -> N | X22: =IF('AER CF'!$C22="Vic","Y","N") -> N
B23: Evoenergy Distribution (Tx Assets) | C23: ACT | D23: Electricity | E23: Distribution | G23: Y | H23: N | I23: Y | J23: Y | K23: Y | L23: Y | M23: N | N23: Y | O23: N | P23: Y | Q23: =IFERROR(IF(dms_MAIFI_flag="Yes","N","Y"),"Y") -> Y | R23: Y | S23: N | T23: Y | U23: Y | V23: N | W23: =IFERROR(LEFT(dms_MAIFI_flag),"N") -> N | X23: =IF('AER CF'!$C23="Vic","Y","N") -> N
B24: Jemena Electricity | C24: Vic | D24: Electricity | E24: Distribution | G24: N | H24: N | K24: N | L24: N | M24: N | N24: N | O24: N | P24: N | Q24: =IFERROR(IF(dms_MAIFI_flag="Yes","N","Y"),"Y") -> Y | R24: N | S24: N | T24: N | U24: Y | V24: N | W24: =IFERROR(LEFT(dms_MAIFI_flag),"N") -> N | X24: =IF('AER CF'!$C25="Vic","Y","N") -> Y
B25: JGN | C25: Vic | D25: Gas | E25: Distribution | F25: - | G25: - | H25: - | I25: - | J25: - | K25: - | L25: - | M25: - | N25: - | O25: - | P25: - | Q25: - | R25: - | S25: - | T25: - | U25: - | V25: - | W25: - | X25: - | Y25: -
B26: Murraylink | C26: SA | D26: Electricity | E26: Transmission | G26: N | K26: N | L26: N | M26: N | N26: N | O26: N | P26: - | Q26: =IFERROR(IF(dms_MAIFI_flag="Yes","N","Y"),"Y") -> Y | R26: N | S26: N | T26: Y | U26: Y | V26: N | W26: =IFERROR(LEFT(dms_MAIFI_flag),"N") -> N | X26: =IF('AER CF'!$C26="Vic","Y","N") -> N
B27: Power and Water | C27: NT | D27: Electricity | E27: Distribution | G27: N | H27: N | K27: N | L27: Y | M27: N | N27: N | O27: N | P27: Y | Q27: =IFERROR(IF(dms_MAIFI_flag="Yes","N","Y"),"Y") -> Y | R27: Y | S27: Y | T27: Y | U27: Y | V27: N | W27: =IFERROR(LEFT(dms_MAIFI_flag),"N") -> N | X27: =IF('AER CF'!$C27="Vic","Y","N") -> N
B28: Powercor Australia | C28: Vic | D28: Electricity | E28: Distribution | G28: N | H28: N | K28: N | L28: N | M28: N | N28: N | O28: N | P28: N | Q28: =IFERROR(IF(dms_MAIFI_flag="Yes","N","Y"),"Y") -> Y | R28: N | S28: N | T28: N | U28: Y | V28: N | W28: =IFERROR(LEFT(dms_MAIFI_flag),"N") -> N | X28: =IF('AER CF'!$C28="Vic","Y","N") -> Y
B29: Powerlink | C29: Qld | D29: Electricity | E29: Transmission | G29: N | K29: N | L29: N | M29: N | N29: N | O29: N | P29: - | Q29: =IFERROR(IF(dms_MAIFI_flag="Yes","N","Y"),"Y") -> Y | R29: N | S29: N | T29: Y | U29: Y | V29: N | W29: =IFERROR(LEFT(dms_MAIFI_flag),"N") -> N | X29: =IF('AER CF'!$C29="Vic","Y","N") -> N
B30: Roma to Brisbane Pipeline | C30: Qld | D30: Gas | E30: Transmission | F30: - | G30: - | H30: - | I30: - | J30: - | K30: - | L30: - | M30: - | N30: - | O30: - | P30: - | Q30: - | R30: - | S30: - | T30: - | U30: - | V30: - | W30: - | X30: - | Y30: -
B31: SA Power Networks | C31: SA | D31: Electricity | E31: Distribution | G31: Y | H31: N | K31: N | L31: N | M31: N | N31: N | O31: N | P31: N | Q31: =IFERROR(IF(dms_MAIFI_flag="Yes","N","Y"),"Y") -> Y | R31: Y | S31: N | T31: Y | U31: N | V31: N | W31: =IFERROR(LEFT(dms_MAIFI_flag),"N") -> N | X31: =IF('AER CF'!$C31="Vic","Y","N") -> N
B32: TasNetworks (D) | C32: Tas | D32: Electricity | E32: Distribution | G32: Y | H32: N | K32: N | L32: N | M32: N | N32: N | O32: N | P32: N | Q32: =IFERROR(IF(dms_MAIFI_flag="Yes","N","Y"),"Y") -> Y | R32: Y | S32: N | T32: Y | U32: Y | V32: N | W32: =IFERROR(LEFT(dms_MAIFI_flag),"N") -> N | X32: =IF('AER CF'!$C32="Vic","Y","N") -> N
B33: TasNetworks (T) | C33: Tas | D33: Electricity | E33: Transmission | G33: N | K33: N | L33: N | M33: N | N33: N | O33: N | P33: - | Q33: =IFERROR(IF(dms_MAIFI_flag="Yes","N","Y"),"Y") -> Y | R33: N | S33: N | T33: Y | U33: Y | V33: N | W33: =IFERROR(LEFT(dms_MAIFI_flag),"N") -> N | X33: =IF('AER CF'!$C33="Vic","Y","N") -> N
B34: TransGrid | C34: NSW | D34: Electricity | E34: Transmission | G34: N | K34: N | L34: N | M34: N | N34: N | O34: N | P34: - | Q34: =IFERROR(IF(dms_MAIFI_flag="Yes","N","Y"),"Y") -> Y | R34: N | S34: N | T34: Y | U34: Y | V34: N | W34: =IFERROR(LEFT(dms_MAIFI_flag),"N") -> N | X34: =IF('AER CF'!$C34="Vic","Y","N") -> N
B35: United Energy | C35: Vic | D35: Electricity | E35: Distribution | G35: N | H35: N | K35: N | L35: N | M35: N | N35: N | O35: N | P35: N | Q35: =IFERROR(IF(dms_MAIFI_flag="Yes","N","Y"),"Y") -> Y | R35: N | S35: N | T35: N | U35: Y | V35: N | W35: =IFERROR(LEFT(dms_MAIFI_flag),"N") -> N | X35: =IF('AER CF'!$C35="Vic","Y","N") -> Y
B38: Confidential
B39: Amended
B41: Worksheet 6.2 STPIS reliability
B42: Formula | F42: Applied to:
B44: =INDEX(dms_CBD_flag,MATCH(dms_TradingName,dms_TradingName_List))="NO" | F44: $D$11,$D$17,$D$23,$D$33,$D$39,$D$45,$D$55,$D$61,$D$67,$D$77,$D$83,$D$89
B45: =INDEX(dms_Urban_flag,MATCH(dms_TradingName,dms_TradingName_List))="NO" | F45: $D$12,$D$18,$D$24,$D$56,$D$62,$D$78,$D$68,$D$84
B46: =INDEX(dms_ShortRural_flag,MATCH(dms_TradingName,dms_TradingName_List))="NO" | F46: $D$13,$D$19,$D$25,$D$57,$D$63,$D$69,$D$79,$D$85
B47: =INDEX(dms_LongRural_flag,MATCH(dms_TradingName,dms_TradingName_List))="NO" | F47: $D$14,$D$20,$D$26,$D$58,$D$64,$D$65,$D$70,$D$71,$D$80,$D$86
B48: =INDEX(dms_FeederType_5_flag,MATCH(dms_TradingName,dms_TradingName_List))="NO" | F48: $D$87,$D$81,$D$71,$D$65,$D$59,$D$49,$D$43,$D$37,$D$21,$D$15
B49: =dms_MAIFI_Flag="No" | F49: $D$55:$D$72
B52: Business & other details
B53: =(INDEX(dms_Model_Span,MATCH(dms_Model,dms_Model_List))>1)
B54: =(INDEX(dms_Model_Span,MATCH(dms_Model,dms_Model_List))=1)
B57: STYLES IN USE
B58: HEADING ONE | C58: dms_1
B59: HEADING TWO | C59: dms_2
B60: HEADING THREE | C60: dms_3
B61: HEADING FOUR | C61: dms_4
B62: HEADING FIVE | C62: dms_5
B63: 5.111 | C63: dms_NUM
B64: 0.0545 | C64: dms_NUM%
B65: 5.5555 | C65: dms_NUM3d
B66: Text description | C66: dms_Row_Locked
B67: Text description | C67: dms_Row1
B68: Text description | C68: dms_Row2
B69: Total | C69: dms_T1
B70: Total | C70: dms_T2
B71: EXPENSES | C71: dms_BH
B72: 2019 | C72: dms_BY1
B73: 2019 | C73: dms_BY2
B74: VOLUMES | C74: dms_GH
B75: 2019 | C75: dms_GY1
B76: 2019 | C76: dms_GY2

Sheet AER NRs (hidden)
B1: AER NAMED RANGES
B3: DROP DOWN SELECTORS USED IN WORKBOOKS
B5: COVER SHEET | C5: dms_DataQuality_List | D5: dms_Confid_status_List
C6: -- select -- | D6: -- select --
C7: Actual | D7: Public
C8: Estimate | D8: Confidential
C9: Consolidated
C12: For all files either AER or business needs to be able to specify the type of submission | D12: For PTRM & RFM templates we must provide a choice in case they change their form of control - otherwise it is drawn from the business specific lookup table above.
C13: dms_SourceList | D13: dms_FormControl_Choices
C14: -- select -- | D14: Revenue cap
C15: After appeal | D15: Revenue yield
C16: Draft decision | D16: Tariff cap
C17: Final decision | D17: Weighted average price cap
C18: PTRM update 1
C19: PTRM update 2
C20: PTRM update 3
C21: PTRM update 4
C22: PTRM update 5
C23: PTRM update 6
C24: PTRM update 7
C25: Reallocated
C26: Recast
C27: Regulatory proposal
C28: Reporting
C29: Revised regulatory proposal
K32: This is used to create an image to insert on 6.3 STPIS sheet - not for dropdown lists. | N32: GAS
B33: CA & RESET RINS DNSP | C33: dms_DNSP_020301_SubstationType | D33: dms_DNSP_020301_ProjectType | E33: dms_DNSP_020301_ProjectTrigger | F33: dms_DNSP_020302_ProjectType | G33: dms_DNSP_020302_ProjectTrigger | H33: dms_STPIS_Exclusion_List | I33: dms_Reason_Interruption | J33: dms_Reason_Interruption_Detailed | K33: Reason for interruption | N33: dms_N0205_AssetType
C34: Subtransmission substation | D34: New substation establishment | E34: Demand growth | F34: New line on new route - single circuit | G34: Demand growth | H34: Weather | I34: Animal | J34: Animal impact | K34: Animal | L34: Animal impact | N34: Cast Iron
C35: Zone substation | D35: Substation upgrade - capacity | E35: Voltage issues | F35: New line on new route - dual circuit | G35: Voltage issues | H35: Equipment failure | I35: Asset failure | J35: Animal nesting/burrowing, etc and other | L35: Animal nesting/burrowing, etc and other | N35: PVC
C36: Switching station | D36: Substation upgrade - voltage | E36: Reactive power issue | F36: New line on new route - other | G36: Reactive power issue | H36: Operational error | I36: Other | J36: Other | L36: Other | N36: Polyamide
C37: Other | D37: Other | E37: Fault level issues | F37: Line rebuild over existing route - single circuit | G37: Fault level issues | H37: Vegetation | I37: Overloads | J37: LV | K37: Asset failure | L37: LV | N37: High density polyethylene (80)
E38: Safety | F38: Line rebuild over existing route - dual circuit | G38: Net market benefit | H38: Animals | I38: Planned | J38: Distribution substation | L38: Distribution substation | N38: High density polyethylene (100)
E39: Environment | F39: Reconductor - Single circuit | G39: Safety | H39: Third party impacts | I39: Network business | J39: HV | L39: HV | N39: High density polyethylene (250)
E40: Other | F40: Reconductor - Dual circuit | G40: Environment | H40: Transmission failure | I40: Third party | J40: Zone substation | L40: Zone substation | N40: High density polyethylene (575)
F41: Reconductor - Other | G41: Other | H41: Load shedding | I41: Unknown | J41: Subtransmission | L41: Subtransmission | N41: Medium density polyethylene
F42: Line upgrade - raising/retensoring | H42: Inter-distributor connection failure | I42: Vegetation | J42: insert description of 'other' | K42: Other | L42: insert description of 'other' | N42: Unprotected steel
F43: Line upgrade - voltage upgrade | H43: Other | I43: Weather | J43: Network error | K43: Overloads | N43: Protected steel
F44: Line upgrade - capacity | I44: 2 - STPIS Exclusion (3.3)(a) | J44: Switching and protection error | K44: Planned | N44: Other
F45: String spare circuit | I45: 3 - STPIS Exclusion (3.3)(a) | J45: Fire | K45: Network business | L45: Network error
F46: Other | I46: 4 - STPIS Exclusion (3.3)(a) | J46: Other | L46: Switching and protection error
I47: 5 - STPIS Exclusion (3.3)(a) | J47: Dig-in | K47: Third party | L47: Fire
I48: 6 - STPIS Exclusion (3.3)(a) | J48: Unauthorised access | L48: Other
I49: 7 - STPIS Exclusion (3.3)(a) | J49: Vehicle impact | L49: Dig-in
J50: Unknown | L50: Unauthorised access
J51: Blow-in/Fall-in - NSP responsibility | L51: Vehicle impact
J52: Grow-in - NSP responsibility | K52: Unknown | L52: Unknown
J53: Blow-in/Fall-in - Other responsible party | K53: Vegetation | L53: Blow-in/Fall-in - NSP responsibility
J54: Grow-in - Other responsible party | L54: Grow-in - NSP responsibility
L55: Blow-in/Fall-in - Other responsible party
L56: Grow-in - Other responsible party
K57: Weather
K58: 2 - STPIS Exclusion (3.3)(a)
K59: 3 - STPIS Exclusion (3.3)(a)
K60: 4 - STPIS Exclusion (3.3)(a)
K61: 5 - STPIS Exclusion (3.3)(a)
K62: 6 - STPIS Exclusion (3.3)(a)
K63: 7 - STPIS Exclusion (3.3)(a)
B66: CA & RESET RINS TNSP | C66: dms_TNSP_0203_SubstationType | D66: dms_TNSP_020301_ProjectType | E66: dms_TNSP_020301_ProjectTrigger | F66: dms_TNSP_020302_ProjectType | G66: dms_TNSP_0203_ProjectTrigger
C67: Terminal station | D67: New substation establishment | E67: Demand growth | F67: New line on new route - single circuit | G67: Demand growth
C68: Switching station | D68: Capacity upgrade | E68: Voltage issues | F68: New line on new route - dual circuit | G68: Voltage issues
C69: Transmission substation | D69: Voltage upgrade | E69: Reactive power issue | F69: New line on new route - other | G69: Reactive power issue
C70: Other | D70: Other | E70: Fault level issues | F70: Line rebuild over existing route - single circuit | G70: Fault level issues
E71: Net market benefit | F71: Line rebuild over existing route - dual circuit | G71: Net market benefit
E72: Safety | F72: Reconductor - Single circuit | G72: Safety
E73: Environment | F73: Reconductor - Dual circuit | G73: Environment
E74: Other | F74: Reconductor - Other | G74: Other
F75: Line upgrade - raising/retensoring
F76: Line upgrade - voltage upgrade
F77: Line upgrade - capacity
F78: String spare circuit
F79: Other
B83: NAMED RANGES USED IN ETL PROCESS
M84: GAS ARR & RESET
B85: CA & RESET RINS DNSP ONLY | C85: dms_020303_01_UOM | D85: dms_020501_01_UOM | E85: dms_020501_02_UOM | F85: dms_020501_03_UOM | G85: dms_020501_04_UOM | H85: dms_020701_01_UOM | I85: dms_020701_02_UOM | J85: dms_020701_01_Rows | K85: dms_040102_01_UOM | L85: dms_040102_04_UOM | M85: dms_S140101_UOM | N85: dms_S140201_UOM | O85: dms_E050201_UOM | P85: dms_E050202_UOM
C86: Circuit line length in km | D86: 0's | E86: 0's | F86: 0's | G86: 0's | H86: km | I86: km | J86: Route line length within zone | K86: 0's | L86: days | M86: number | N86: number per km | O86: per metre per connection | P86: metres per connection
C87: Circuit line length in km | D87: 0's | E87: 0's | F87: 0's | G87: 0's | H87: 0's | I87: 0's | J87: Number of maintenance spans | K87: 0's | L87: 0's | M87: number | N87: number | O87: per service per connection | P87: number per connection
C88: Circuit line length in km | D88: MVA added | E88: MVA added | F88: MVA added | G88: MVA added | H88: km | I88: km | J88: Total length of maintenance spans | K88: 0's | L88: $0s | M88: number | N88: number | O88: number per connection | P88: number per connection
C89: Circuit line length in km | D89: 0's | E89: 0's | F89: 0's | G89: 0's | H89: km | I89: km | J89: Length of vegetation corridors | K89: $0s | L89: 0's | M89: km
C90: Number | D90: total spend $0s | E90: total spend $0s | F90: total spend $0s | G90: total spend $0s | H90: 0's | I90: 0's | J90: Average number of trees per maintenance span
C91: Number | D91: net circuit km added | E91: net circuit km added | F91: net circuit km added | G91: net circuit km added | H91: years | I91: years | J91: Average frequency of cutting cycle
C92: Number | D92: total spend $0s | E92: total spend $0s | F92: total spend $0s | G92: total spend $0s
D93: net circuit km added | E93: net circuit km added | F93: net circuit km added | G93: net circuit km added
D94: total spend $0s | E94: total spend $0s | F94: total spend $0s | G94: total spend $0s
D95: 0's | F95: $0s
D96: 0's
D97: 0's
D98: $0s
B101: CA & RESET RINS TNSP ONLY | C101: dms_020701_01_UOM
C102: km
C103: 0's
C104: km
C105: 0's
C106: km
C107: metres
C108: years
B111: CA & RESET RINS DNSP & TNSP | C111: dms_020603_01_UOM
C112: 0's
C113: 0's
C114: 0's
C115: 0's
C116: (per cent)
B119: EB & RESET RINS DNSP ONLY | C119: dms_030601_01_UOM | D119: dms_030601_02_UOM | E119: dms_030701_01_UOM | F119: dms_030702_01_UOM | G119: dms_030703_01_UOM
C120: minutes/customer | D120: minutes/customer | E120: Customer / km | F120: % | G120: km
C121: minutes/customer | D121: minutes/customer | E121: MWh/customer | F121: Number of spans
C122: interruptions/customer | D122: interruptions/customer | E122: kVA / customer | F122: Number of spans
C123: interruptions/customer | D123: interruptions/customer | F123: Number of spans
F124: Number of spans
F125: Years
F126: Years
F127: Trees
F128: Trees
F129: Defects
F130: Defects
F131: Spans
F132: km
F133: Spans
C135: WHEN INSERTING COVER SHEET INTO A TNSP FILE - APPLY THESE NAMED RANGES
B136: EB & RESET RINS TNSP ONLY | C136: dms_030601_01_UOM | E136: dms_030701_01_UOM | F136: dms_030702_01_UOM
C137: % | E137: Number of spans | F137: km
C138: number | E138: Years | F138: %
C139: number | E139: Trees | F139: km
C140: % | E140: Defects | F140: number
C141: number | E141: Number of spans
C142: number | E142: km
C143: % | E143: km
C144: number | E144: Number of spans
C145: number
C146: %
C147: number
C148: %
C149: number
C150: %
C151: number
B153: EB & RESET RINS DNSP & TNSP | C153: dms_EB_RAB_PIT
C154: Beginning of year
C155: End of year
C156: End of year
C157: End of year
C158: End of year
C159: End of year
B161: ARR DNSP ONLY | C161: dms_030605_UOM | D161: dms_03060703_UOM | E161: dms_E020202_UOM | F161: Spare
C162: number | D162: number | E162: Length of mains replaced
C163: number | D163: number | E163: Number of services replaced
C164: number | D164: number
C165: number | D165: number
C166: number | D166: (per cent)
C167: number
C168: number
C169: number
C170: number
C171: number
C172: number
C173: number
C174: (per cent)
C175: (per cent)
B177: RFM | C177: dms_Beg | D177: dms_Mid | E177: dms_End
C178: Beginning of year | D178: Mid year | E178: End of Year
B180: PTRM | C180: dms_PTRM_RAB_PIT | D180: dms_PTRM_TAB_PIT | E180: DMS_Xfactor
C181: Beginning of year | D181: Beginning of year | E181: x factors
C182: End of year | D182: End of year
C183: End of year | D183: End of year
C184: End of year | D184: End of year
C185: End of year
B188: STPIS & MIC NAMED RANGES
B190: These "row descriptions" are the column headings in the various templates but become row descriptions in the ETL process
B192: Table 6.3 sustained interruptions - row descriptions | C192: dms_060301_CustNo_Affected_Row | D192: dms_060301_Avg_Duration_Sustained_Int_Row | E192: dms_060301_Effect_unplanned_SAIDI_Row | F192: dms_060301_Effect_unplanned_SAIFI_Row
C193: Number of customers affected by the interruption | D193: Average duration of sustained customer interruption | E193: Effect on unplanned SAIDI | F193: Effect on unplanned SAIFI
B196: Table 6.1 telephone answering - row descriptions and start date | C196: dms_060101_Rows | D196: dms_060102_Rows | E196: dms_060101_StartDateTxt
C197: Total number of calls (after removing excluded events) | D197: Number of calls answered within 30 seconds (after excluding excluded events) | E197: =dms_060701_StartDateTxt -> 1-Jul-2018
B200: Table 6.8.1 - row descriptions | C200: dms_060801_01_Rows | D200: dms_060801_02_Rows | E200: dms_060801_03_Rows | F200: dms_060801_04_Rows
C201: Number of interruptions | D201: Duration of interruptions | E201: Total unplanned minutes off supply | F201: Effect on unplanned MAIFI
B204: Table 7.9.4 - market impact component - row descriptions | C204: dms_070904_01_Rows | D204: without exclusions | E204: with exclusions
B207: These headings (Lists) are determined from the INDEX/MATCH function on the NSP selected on the Business & other details sheet
B209: Table 6.7.1 - daily performance data - unplanned - MAIFI -- row descriptions and header named range values | C209: dms_060701_Feeder_Header_Lvl4 | D209: =INDEX(dms_FeederName_1,MATCH(dms_TradingName,dms_TradingName_List)) -> CBD | E209: =INDEX(dms_FeederName_1,MATCH(dms_TradingName,dms_TradingName_List)) -> CBD | F209: =INDEX(dms_FeederName_2,MATCH(dms_TradingName,dms_TradingName_List)) -> Urban | G209: =INDEX(dms_FeederName_2,MATCH(dms_TradingName,dms_TradingName_List)) -> Urban | H209: =INDEX(dms_FeederName_3,MATCH(dms_TradingName,dms_TradingName_List)) -> Short rural | I209: =INDEX(dms_FeederName_3,MATCH(dms_TradingName,dms_TradingName_List)) -> Short rural | J209: =INDEX(dms_FeederName_4,MATCH(dms_TradingName,dms_TradingName_List)) -> Long rural | K209: =INDEX(dms_FeederName_4,MATCH(dms_TradingName,dms_TradingName_List)) -> Long rural | L209: =IF((INDEX(dms_FeederName_5,MATCH(dms_TradingName,dms_TradingName_List))=0),"Network",(INDEX(dms_FeederName_5,MATCH(dms_TradingName,dms_TradingName_List)))) -> Network | M209: =IF((INDEX(dms_FeederName_5,MATCH(dms_TradingName,dms_TradingName_List))=0),"Network",(INDEX(dms_FeederName_5,MATCH(dms_TradingName,dms_TradingName_List)))) -> Network | N209: Network | O209: Network
C211: dms_060701_Rows | D211: All events | E211: After removing excluded events | F211: All events | G211: After removing excluded events | H211: All events | I211: After removing excluded events | J211: All events | K211: After removing excluded events | L211: All events | M211: After removing excluded events | N211: All events | O211: After removing excluded events
D212: the number of column headings changes from 10 to 12 depending on the number of feeder categories for the NSP
C214: dms_0603_FeederList | D214: =INDEX(dms_FeederName_1,MATCH(dms_TradingName,dms_TradingName_List)) -> CBD | E214: =INDEX(dms_FeederName_2,MATCH(dms_TradingName,dms_TradingName_List)) -> Urban | F214: =INDEX(dms_FeederName_3,MATCH(dms_TradingName,dms_TradingName_List)) -> Short rural | G214: =INDEX(dms_FeederName_4,MATCH(dms_TradingName,dms_TradingName_List)) -> Long rural
B217: Use these to add to specific worksheets in existing files | C217: Use these to add to specific worksheets in existing files
B220: ARRs 6.7 STPIS daily performance | C220: dms_060101_Values | D220: dms_060102_Values | E220: dms_060701_Values
C221: dms_LeapYear
B224: ARR's 6.8 STPIS exclusions | C224: dms_060801_Event_Date | D224: dms_060801_OutageID | E224: dms_060801_FeederID | F224: dms_060801_FeederClass | G224: dms_060801_CauseID | H224: dms_060801_01_Values | I224: dms_060801_02_Values | J224: dms_060801_03_Values | K224: dms_060801_Excl_Cat | L224: dms_060801_04_Values
C225: dms_060801_StartCell
B228: CA 6.3 sustained interruptions | C228: dms_060301_Event_Date | D228: dms_060301_Event_Time | E228: dms_060301_AssetID | F228: dms_060301_FeederClass | G228: dms_060301_Reason | H228: dms_060301_DetailedReason | I228: dms_060301_CustNo_Affected_Values | J228: dms_060301_Avg_Duration_Sustained_Int_Values | K228: dms_060301_Effect_unplanned_SAIDI_Values | L228: dms_060301_Effect_unplanned_SAIFI_Values | M228: dms_060301_MED
B232: PTRM input sheet | C232: DMS_50_01_01a | D232: DMS_50_01_01aa | E232: DMS_50_01_01b | F232: DMS_50_01_01bb | G232: DMS_50_01_01c | H232: DMS_50_01_01d | I232: DMS_50_01_01dd

Sheet AER lookups (hidden)
B1: AER LOOKUP TABLES
B3: Data in these columns used for data validation and database purposes.
B4: Date last modified: | C4: 2017-01-16 | D4: added (Albury and Victora) for AGN
C5: 2016-10-17 | D5: updated TransGrid's correct legal name, corrected TasNetworks (T) to June financial year
C6: 2017-02-01 | D6: inserted Power and Water, added NRs (dms_FeederCat_1 and dms_FeederCat_2)
C7: 2017-03-03 | D7: inserted AEMO as a business
C8: 2018-03-28 | D8: major changes to accommodate STPIS
C9: Template Version | D9: 5
X11: FOR ELECTRICITY BUSINESSES ONLY
X12: Feeder Types | AB12: TasNetworks (D) | AC12: Feeder Names
X14: CBD | Y14: Urban | Z14: Short rural | AA14: long rural | AB14: EXTRA
B15: dms_TradingName_List | C15: dms_TradingNameFull_List | D15: dms_ABN_List | E15: dms_JurisdictionList | F15: dms_Sector_List | G15: dms_Segment_List | H15: dms_FormControl_List | I15: dms_RPT_List | J15: dms_RPTMonth_List | K15: dms_CRCPlength_List | L15: dms_FRCPlength_List | M15: dms_PRCPlength_List | N15: dms_Addr1_List | O15: dms_Addr2_List | P15: dms_Suburb_List | Q15: dms_State_List | R15: dms_PostCode_List | S15: dms_PAddr1_List | T15: dms_PAddr2_List | U15: dms_PSuburb_List | V15: dms_PState_List | W15: dms_PPostCode_List | X15: dms_CBD_flag | Y15: dms_Urban_flag | Z15: dms_ShortRural_flag | AA15: dms_LongRural_flag | AB15: dms_FeederType_5_flag | AC15: dms_FeederName_1 | AD15: dms_FeederName_2 | AE15: dms_FeederName_3 | AF15: dms_FeederName_4 | AG15: dms_FeederName_5 | AH15: dms_Public_Lighting_List | AI15: Name
B16: Directlink | C16: Directlink | D16: 16779340889 | E16: Qld | F16: Electricity | G16: Transmission | H16: Revenue cap | I16: Financial | J16: June | K16: 5 | L16: 5 | M16: 5 | N16: Level 19, HSBC Building | O16: 580 George Street | P16: SYDNEY | Q16: NSW | R16: 2000 | S16: PO Box R41 | U16: ROYAL EXCHANGE | V16: NSW | W16: 1225 | X16: NO | Y16: NO | Z16: NO | AA16: NO | AB16: NO | AC16: CBD | AD16: Urban | AE16: Short rural | AF16: Long rural | AH16: NO | AI16: Directlink
B17: Murraylink | C17: Murraylink Transmission Company Pty Ltd | D17: 42 089 875 605 | E17: SA | F17: Electricity | G17: Transmission | H17: Revenue cap | I17: Financial | J17: June | K17: 5 | L17: 5 | M17: 5 | N17: Level 19, HSBC Building | O17: 580 George Street | P17: SYDNEY | Q17: NSW | R17: 2000 | S17: PO Box R41 | U17: ROYAL EXCHANGE | V17: NSW | W17: 1225 | X17: NO | Y17: NO | Z17: NO | AA17: NO | AB17: NO | AC17: CBD | AD17: Urban | AE17: Short rural | AF17: Long rural | AH17: NO | AI17: =B17 -> Murraylink
B22: The Reg Year Ending (dms_RYE) must be set to the last year of the regulatory period. For forecast data is is usually (FRCP_y5) for it is a single year (CRY). For historical data the RYE will need to be set manually in the business details sheet by setting the dms_Multiyear_flag to 1 and putting the correct value in 'dms_Specified_FinalYear. See cells C67:C68
B23: dms_Model_List | C23: dms_Model_Name_Format1 | D23: dms_Worksheet_List | E23: dms_Model_Span_List
B24: ARR | C24: Annual Reporting | D24: =IF(dms_MultiYear_ResponseFlag="yes","NEW HISTORICAL ANNUAL REPORTING","ANNUAL REPORTING") -> ANNUAL REPORTING | E24: 1
B25: CA | C25: Category Analysis | D25: =IF(dms_MultiYear_ResponseFlag="yes","NEW HISTORICAL CATEGORY ANALYSIS","CATEGORY ANALYSIS") -> CATEGORY ANALYSIS | E25: 1
B26: CESS | C26: Capitlal Expenditure | D26: CAPITLAL EXPENDITURE SHARING SCHEMING | E26: 5
B27: CPI | C27: CPI | D27: CPI | E27: 5
B28: EB | C28: Economic Benchmarking | D28: =IF(dms_MultiYear_ResponseFlag="yes","NEW HISTORICAL ECONOMIC BENCHMARKING","ECONOMIC BENCHMARKING") -> ECONOMIC BENCHMARKING | E28: 1
B29: EBSS | C29: Efficiency Benefit Sharing Scheme | D29: EFFICIENCY BENEFIT SHARING SCHEME | E29: 5
B30: Pricing | C30: Pricing Proposal | D30: PRICING PROPOSAL | E30: 5
B31: Profitability | C31: Profitability | D31: PROFITABILITY | E31: 5
B32: PTRM | C32: Post Tax Revenue Model | D32: POST TAX REVENUE MODEL | E32: 5
B33: Reset | C33: Regulatory Reporting (Reset) | D33: REGULATORY REPORTING STATEMENT | E33: 5
B34: RFM | C34: Roll Forward Model | D34: ROLL FORWARD MODEL | E34: 5
B35: WACC | C35: Weighted Average Cost of Capital | D35: WEIGHTED AVERAGE COST OF CAPITAL | E35: 1
B39: Financial | C39: Calendar | E39: PREVIOUS | G39: CURRENT | I39: FORTHCOMING
B40: 1987-88 | C40: 1988 | D40: PRCP_y1 | E40: =INDEX(INDIRECT(dms_RPT),dms_PRCP_start_row) -> 2015-16 | F40: CRCP_y1 | G40: =INDEX(INDIRECT(dms_RPT),dms_CRCP_start_row) -> 2020-21 | H40: =FRCP_y1 -> 2025-26 | I40: =INDEX(INDIRECT(dms_RPT),dms_FRCP_start_row) -> 2025-26
B41: 1988-89 | C41: 1989 | D41: PRCP_y2 | E41: =INDEX(INDIRECT(dms_RPT),dms_PRCP_start_row+1) -> 2016-17 | F41: CRCP_y2 | G41: =INDEX(INDIRECT(dms_RPT),dms_CRCP_start_row+1) -> 2021-22 | H41: FRCP_y2 | I41: =INDEX(INDIRECT(dms_RPT),dms_FRCP_start_row+1) -> 2026-27
B42: 1989-90 | C42: 1990 | D42: PRCP_y3 | E42: =INDEX(INDIRECT(dms_RPT),dms_PRCP_start_row+2) -> 2017-18 | F42: CRCP_y3 | G42: =INDEX(INDIRECT(dms_RPT),dms_CRCP_start_row+2) -> 2022-23 | H42: FRCP_y3 | I42: =INDEX(INDIRECT(dms_RPT),dms_FRCP_start_row+2) -> 2027-28
B43: 1990-91 | C43: 1991 | D43: PRCP_y4 | E43: =INDEX(INDIRECT(dms_RPT),dms_PRCP_start_row+3) -> 2018-19 | F43: CRCP_y4 | G43: =INDEX(INDIRECT(dms_RPT),dms_CRCP_start_row+3) -> 2023-24 | H43: FRCP_y4 | I43: =INDEX(INDIRECT(dms_RPT),dms_FRCP_start_row+3) -> 2028-29
B44: 1991-92 | C44: 1992 | D44: PRCP_y5 | E44: =INDEX(INDIRECT(dms_RPT),dms_PRCP_start_row+4) -> 2019-20 | F44: CRCP_y5 | G44: =INDEX(INDIRECT(dms_RPT),dms_CRCP_start_row+4) -> 2024-25 | H44: FRCP_y5 | I44: =INDEX(INDIRECT(dms_RPT),dms_FRCP_start_row+4) -> 2029-30
B45: 1992-93 | C45: 1993 | D45: PRCP_y6 | E45: =INDEX(INDIRECT(dms_RPT),dms_PRCP_start_row+5) -> 2020-21 | F45: CRCP_y6 | G45: =INDEX(INDIRECT(dms_RPT),dms_CRCP_start_row+5) -> 2025-26 | H45: FRCP_y6 | I45: =INDEX(INDIRECT(dms_RPT),dms_FRCP_start_row+5) -> 2030-31
B46: 1993-94 | C46: 1994 | D46: PRCP_y7 | E46: =INDEX(INDIRECT(dms_RPT),dms_PRCP_start_row+6) -> 2021-22 | F46: CRCP_y7 | G46: =INDEX(INDIRECT(dms_RPT),dms_CRCP_start_row+6) -> 2026-27 | H46: FRCP_y7 | I46: =INDEX(INDIRECT(dms_RPT),dms_FRCP_start_row+6) -> 2031-32
B47: 1994-95 | C47: 1995 | D47: PRCP_y8 | E47: =INDEX(INDIRECT(dms_RPT),dms_PRCP_start_row+7) -> 2022-23 | F47: CRCP_y8 | G47: =INDEX(INDIRECT(dms_RPT),dms_CRCP_start_row+7) -> 2027-28 | H47: FRCP_y8 | I47: =INDEX(INDIRECT(dms_RPT),dms_FRCP_start_row+7) -> 2032-33
B48: 1995-96 | C48: 1996 | D48: PRCP_y9 | E48: =INDEX(INDIRECT(dms_RPT),dms_PRCP_start_row+8) -> 2023-24 | F48: CRCP_y9 | G48: =INDEX(INDIRECT(dms_RPT),dms_CRCP_start_row+8) -> 2028-29 | H48: FRCP_y9 | I48: =INDEX(INDIRECT(dms_RPT),dms_FRCP_start_row+8) -> 2033-34
B49: 1996-97 | C49: 1997 | D49: PRCP_y10 | E49: =INDEX(INDIRECT(dms_RPT),dms_PRCP_start_row+9) -> 2024-25 | F49: CRCP_y10 | G49: =INDEX(INDIRECT(dms_RPT),dms_CRCP_start_row+9) -> 2029-30 | H49: FRCP_y10 | I49: =INDEX(INDIRECT(dms_RPT),dms_FRCP_start_row+9) -> 2034-35
B50: 1997-98 | C50: 1998 | D50: PRCP_y11 | E50: =INDEX(INDIRECT(dms_RPT),dms_PRCP_start_row+10) -> 2025-26 | F50: CRCP_y11 | G50: =INDEX(INDIRECT(dms_RPT),dms_CRCP_start_row+10) -> 2030-31 | H50: FRCP_y11 | I50: =INDEX(INDIRECT(dms_RPT),dms_FRCP_start_row+10) -> 2035-36
B51: 1998-99 | C51: 1999 | D51: PRCP_y12 | E51: =INDEX(INDIRECT(dms_RPT),dms_PRCP_start_row+11) -> 2026-27 | F51: CRCP_y12 | G51: =INDEX(INDIRECT(dms_RPT),dms_CRCP_start_row+11) -> 2031-32 | H51: FRCP_y12 | I51: =INDEX(INDIRECT(dms_RPT),dms_FRCP_start_row+11) -> 2036-37
B52: 1999-00 | C52: 2000 | D52: PRCP_y13 | E52: =INDEX(INDIRECT(dms_RPT),dms_PRCP_start_row+12) -> 2027-28 | F52: CRCP_y13 | G52: =INDEX(INDIRECT(dms_RPT),dms_CRCP_start_row+12) -> 2032-33 | H52: FRCP_y13 | I52: =INDEX(INDIRECT(dms_RPT),dms_FRCP_start_row+12) -> 
B53: 2000-01 | C53: 2001 | D53: PRCP_y14 | E53: =INDEX(INDIRECT(dms_RPT),dms_PRCP_start_row+13) -> 2028-29 | F53: CRCP_y14 | G53: =INDEX(INDIRECT(dms_RPT),dms_CRCP_start_row+13) -> 2033-34 | H53: FRCP_y14 | I53: =INDEX(INDIRECT(dms_RPT),dms_FRCP_start_row+13) -> 
B54: 2001-02 | C54: 2002 | D54: PRCP_y15 | E54: =INDEX(INDIRECT(dms_RPT),dms_PRCP_start_row+14) -> 2029-30 | F54: CRCP_y15 | G54: =INDEX(INDIRECT(dms_RPT),dms_CRCP_start_row+14) -> 2034-35 | H54: FRCP_y15 | I54: =INDEX(INDIRECT(dms_RPT),dms_FRCP_start_row+14) -> 
B55: 2002-03 | C55: 2003 | D55: PRCP_y16 | E55: =INDEX(INDIRECT(dms_RPT),dms_PRCP_start_row+15) -> 2030-31 | F55: CRCP_y16 | G55: =INDEX(INDIRECT(dms_RPT),dms_CRCP_start_row+15) -> 2035-36 | H55: FRCP_y16 | I55: =INDEX(INDIRECT(dms_RPT),dms_FRCP_start_row+15) -> 
B56: 2003-04 | C56: 2004
B57: 2004-05 | C57: 2005
B58: 2005-06 | C58: 2006 | E58: CRY - FRY
B59: 2006-07 | C59: 2007 | D59: dms_y1 | E59: =IFERROR(INDEX(INDIRECT(dms_RPT),dms_CRY_start_row),0) -> 2018-19
B60: 2007-08 | C60: 2008 | D60: dms_y2 | E60: =IFERROR(INDEX(INDIRECT(dms_RPT),dms_CRY_start_row+1),0) -> 2019-20
B61: 2008-09 | C61: 2009 | D61: dms_y3 | E61: =IFERROR(INDEX(INDIRECT(dms_RPT),dms_CRY_start_row+2),0) -> 2020-21
B62: 2009-10 | C62: 2010 | D62: dms_y4 | E62: =IFERROR(INDEX(INDIRECT(dms_RPT),dms_CRY_start_row+3),0) -> 2021-22
B63: 2010-11 | C63: 2011 | D63: dms_y5 | E63: =IFERROR(INDEX(INDIRECT(dms_RPT),dms_CRY_start_row+4),0) -> 2022-23
B64: 2011-12 | C64: 2012 | D64: dms_y6 | E64: =IFERROR(INDEX(INDIRECT(dms_RPT),dms_CRY_start_row+5),0) -> 2023-24
B65: 2012-13 | C65: 2013 | D65: dms_y7 | E65: =IFERROR(INDEX(INDIRECT(dms_RPT),dms_CRY_start_row+6),0) -> 2024-25
B66: 2013-14 | C66: 2014 | D66: dms_y8 | E66: =IFERROR(INDEX(INDIRECT(dms_RPT),dms_CRY_start_row+7),0) -> 2025-26
B67: 2014-15 | C67: 2015 | D67: dms_y9 | E67: =IFERROR(INDEX(INDIRECT(dms_RPT),dms_CRY_start_row+8),0) -> 2026-27
B68: 2015-16 | C68: 2016 | D68: dms_y10 | E68: =IFERROR(INDEX(INDIRECT(dms_RPT),dms_CRY_start_row+9),0) -> 2027-28
B69: 2016-17 | C69: 2017 | D69: dms_y11 | E69: =IFERROR(INDEX(INDIRECT(dms_RPT),dms_CRY_start_row+10),0) -> 2028-29
B70: 2017-18 | C70: 2018 | D70: dms_y12 | E70: =IFERROR(INDEX(INDIRECT(dms_RPT),dms_CRY_start_row+11),0) -> 2029-30
B71: 2018-19 | C71: 2019 | D71: dms_y13 | E71: =IFERROR(INDEX(INDIRECT(dms_RPT),dms_CRY_start_row+12),0) -> 2030-31
B72: 2019-20 | C72: 2020 | D72: dms_y14 | E72: =IFERROR(INDEX(INDIRECT(dms_RPT),dms_CRY_start_row+13),0) -> 2031-32
B73: 2020-21 | C73: 2021 | D73: dms_y15 | E73: =IFERROR(INDEX(INDIRECT(dms_RPT),dms_CRY_start_row+14),0) -> 2032-33
B74: 2021-22 | C74: 2022 | D74: dms_y16 | E74: =IFERROR(INDEX(INDIRECT(dms_RPT),dms_CRY_start_row+15),0) -> 2033-34
B75: 2022-23 | C75: 2023
B76: 2023-24 | C76: 2024
B77: 2024-25 | C77: 2025
B78: 2025-26 | C78: 2026
B79: 2026-27 | C79: 2027
B80: 2027-28 | C80: 2028
B81: 2028-29 | C81: 2029
B82: 2029-30 | C82: 2030
B83: 2030-31 | C83: 2031
B84: 2031-32 | C84: 2032
B85: 2032-33 | C85: 2033
B86: 2033-34 | C86: 2034
B87: 2034-35 | C87: 2035
B88: 2035-36 | C88: 2036
B89: 2036-37 | C89: 2037

Sheet AER ETL (hidden)
B1: AER ETL INFORMATION
B3: USES NAMED RANGES FLAG | C3: yes | D3: dms_Defined_Names_Used
B5: IF THIS IS AN ABC RIN - make sure the the named range CRY is applied and the named range dms_dollar_nom_UOM is applied
B6: IF THIS IS A RESET RIN - make sure the named ranges CRY and dms_dollar_nom_UOM are NOT present in the workbook
B7: FOR ABC RINS THAT SPAN MULTIPLE YEARS - make sure MultiYear Flag is set and final year entered as required
B9: Full trading name | C9: =INDEX(dms_TradingNameFull_List,MATCH(dms_TradingName,dms_TradingName_List)) -> Directlink | E9: dms_TradingNameFull
B10: Trading name | C10: =dms_TradingName -> Directlink
A11: Selected here | B11: Model / RIN | C11: Reset | D11: dms_Model
A12: Read from Business & other details | B12: Source | C12: =dms_Selected_Source -> Regulatory proposal | D12: dms_Source
B13: Data quality | C13: Consolidated | D13: For DB purposes this is always Consoldiated
B14: Data status | C14: Public | D14: For DB purposes this is always Public
B15: Amendment reason | C15: =dms_Amendment_Text -> . | F15: dms_AmendmentReason
B16: Submission date | C16: =dms_Typed_Submission_Date -> 2024-01-30 | D16: dms_SubmissionDate
A18: Redundant | B18: EBSS - First application of scheme in forthcoming period? | C18: No
A19: Pre-populated from lookup table | B19: Data ingestion data quality | C19: Consolidated | D19: dms_DataQuality | E19: Always Consolidated
B20: Sector | C20: =INDEX(dms_Sector_List,MATCH(dms_TradingName,dms_TradingName_List)) -> Electricity | D20: dms_Sector | E20: =INDEX(dms_Sector_List,MATCH(dms_TradingName,dms_TradingName_List))
B21: Segment | C21: =INDEX(dms_Segment_List,MATCH(dms_TradingName,dms_TradingName_List)) -> Transmission | D21: dms_Segment | E21: =INDEX(dms_Segment_List,MATCH(dms_TradingName,dms_TradingName_List))
B22: Regulatory Year Ending | C22: =IF(dms_MultiYear_Flag=1,LEFT(dms_Specified_FinalYear,2)&RIGHT(dms_Specified_FinalYear,2),dms_RYE_result) -> 2030 | D22: dms_RYE | E22: =IF(dms_MultiYear_Flag=1,LEFT(dms_Specified_FinalYear,2)&RIGHT(dms_Specified_FinalYear,2),dms_RYE_result)
B23: Reporting Period Type | C23: =INDEX(dms_RPT_List,MATCH(dms_TradingName,dms_TradingName_List)) -> Financial | D23: dms_RPT | E23: =INDEX(dms_RPT_List,MATCH(dms_TradingName,dms_TradingName_List))
B24: EB/CA Unit of Measure for Monetary Values | C24: $0s | D24: dms_dollar_nom_UOM | E24: If the cover sheet is attached to an ABC RIN apply the NAMED RANGE to the cell
B25: Security Classification | C25: Public | D25: dms_Classification | E25: Always Public
B26: Jurisdiction | C26: =INDEX(dms_JurisdictionList,MATCH(dms_TradingName,dms_TradingName_List)) -> Qld | D26: dms_Jurisdiction | E26: =INDEX(dms_JurisdictionList,MATCH(dms_TradingName,dms_TradingName_List))
A27: Relevant for PTRM, RFMs and Reset RINS | B27: $ REAL REFERENCES
B28: Does the named range CRY exist in this file? | C28: =IFERROR(CRY,"NO") -> 2018-19
B29: CRY-1 (last full calendar year before CRY) | C29: =IFERROR(IF(dms_RPT="calendar",CRY-1,LEFT(CRY,4)),"CRY not present") -> 2018 | D29: dms_Cal_Year_B4_CRY | E29: '=IF(dms_RPT="financial",VALUE(LEFT(dms_SingleYear_FinalYear_Result,4)),VALUE(LEFT(dms_SingleYear_FinalYear_Result,4)-1))
B30: Dollar $ real month | C30: =INDEX(dms_RPTMonth_List,MATCH(dms_TradingName,dms_TradingName_List)) -> June | D30: dms_RPTMonth | E30: =INDEX(dms_RPTMonth_List,MATCH(dms_TradingName,dms_TradingName_List))
B31: Dollar $ real (the last month before the FRCP_y1) | C31: =IF(dms_Model="RFM",dms_DollarReal_Prev, IF(dms_SingleYearModel="yes",CONCATENATE(dms_RPTMonth)&" "&VALUE((LEFT(dms_CRY_start_year,2)&RIGHT(dms_CRY_start_year,2))),CONCATENATE(dms_RPTMonth)&" "&dms_DollarReal_year)) -> June 2025 | D31: dms_DollarReal | E31: =IF(dms_Model="RFM",dms_DollarReal_Prev, IF(dms_SingleYearModel="yes",CONCATENATE(dms_RPTMonth)&" "&VALUE((LEFT(dms_CRY_start_year,2)&RIGHT(dms_CRY_start_year,2))),CONCATENATE(dms_RPTMonth)&" "&dms_DollarReal_year))
B32: Dollar $ real previous year (PRCP_y5) | C32: =CONCATENATE(dms_RPTMonth)&" "&dms_Previous_DollarReal_year -> June 2020 | D32: dms_DollarReal_Prev | E32: =IF(SUM(dms_SingleYear_Model)>0,CONCATENATE(dms_RPTMonth)&" "&VALUE(((LEFT(CRY,2))&RIGHT(CRY,2))-1),CONCATENATE(dms_RPTMonth)&" "&VALUE(((LEFT(dms_CRCP_FirstYear_Result,2)&RIGHT(dms_CRCP_FirstYear_Result,2))))-1)
B33: PTRM/ RFMs
B34: Form of control | C34: =INDEX(dms_FormControl_List,MATCH(dms_TradingName,dms_TradingName_List)) -> Revenue cap | D34: dms_FormControl | E34: =INDEX(dms_FormControl_List,MATCH(dms_TradingName,dms_TradingName_List))
A35: All potential values for Regulatory Years or RYEs as calculated | B35: This block works out the various RYE's for ALL RIN types and MODELS
B36: dms_start_year | C36: =FRCP_y1 -> 2025-26 | D36: =FRCP_y1 | E36: FRCP_y1 from cover sheet
B37: dms_CRY_start_year | C37: =IFERROR(CRY,CRCP_y4) -> 2018-19 | D37: =IFERROR(CRY,CRCP_y4)
B38: dms_CRY_start_row | C38: =IFERROR(MATCH(dms_CRY_start_year,INDIRECT(dms_RPT),0),0) -> 32 | D38: =IFERROR(MATCH(dms_CRY_start_year,INDIRECT(dms_RPT),0),0)
B39: dms_FRCP_start_row | C39: =MATCH(dms_start_year,INDIRECT(dms_RPT),0) -> 39 | D39: =MATCH(dms_start_year,INDIRECT(dms_RPT),0) | E39: Uses FRCP_y1 as a start reference
B40: dms_CRCP_start_row | C40: =dms_FRCP_start_row-dms_CRCPlength_Num -> 34 | D40: =dms_FRCP_start_row-dms_CRCPlength_Num | E40: Uses the value in dms_CRCPlength_Num
B41: dms_PRCP_start_row | C41: =dms_FRCP_start_row-dms_CRCPlength_Num-dms_PRCPlength_Num -> 29 | D41: =dms_FRCP_start_row-dms_CRCPlength_Num-dms_PRCPlength_Num | E41: Uses the value in dms_CRCPlength_Num and dms_PRCPlength_Num
B42: dms_RYE_start_row | C42: =dms_FRCP_start_row+(dms_FRCPlength_Num-1) -> 43 | D42: =dms_FRCP_start_row+(dms_FRCPlength_Num-1) | E42: Uses the value in dms_FRCPlength_Num-1
B43: FRCP_start_year | C43: =INDEX(INDIRECT(dms_RPT),dms_FRCP_start_row) -> 2025-26 | D43: =INDEX(INDIRECT(dms_RPT),dms_FRCP_start_row) | E43: Converts the FRCP start row to display the year
B44: CRCP_start_year | C44: =INDEX(INDIRECT(dms_RPT),dms_CRCP_start_row) -> 2020-21 | D44: =INDEX(INDIRECT(dms_RPT),dms_CRCP_start_row) | E44: Converts the CRCP start row to display the year
B45: PRCP_start_year | C45: =INDEX(INDIRECT(dms_RPT),dms_PRCP_start_row) -> 2015-16 | D45: =INDEX(INDIRECT(dms_RPT),dms_PRCP_start_row) | E45: Converts the PRCP start row to display the year
B46: FRCP_final_year | C46: =INDEX(INDIRECT(dms_RPT),dms_FRCP_start_row+dms_FRCPlength_Num-1) -> 2029-30 | D46: =INDEX(INDIRECT(dms_RPT),dms_FRCP_start_row+dms_FRCPlength_Num-1) | E46: Finds the FRCP final year
B47: CRCP_final_year | C47: =INDEX(INDIRECT(dms_RPT),dms_CRCP_start_row+dms_CRCPlength_Num-1) -> 2024-25 | D47: =INDEX(INDIRECT(dms_RPT),dms_CRCP_start_row+dms_CRCPlength_Num-1) | E47: Finds the CRCP final year
B48: PRCP_final_year | C48: =INDEX(INDIRECT(dms_RPT),dms_PRCP_start_row+dms_FRCPlength_Num-1) -> 2019-20 | D48: =INDEX(INDIRECT(dms_RPT),dms_PRCP_start_row+dms_FRCPlength_Num-1) | E48: Finds the PRCP final year
B49: dms_Reset_final_year | C49: =INDEX(INDIRECT(dms_RPT),dms_RYE_start_row) -> 2029-30 | D49: =INDEX(INDIRECT(dms_RPT),dms_RYE_start_row) | E49: For Resets and PTRM/RFMs (same as FRCP_final_year)
B50: dms_SpecifiedYear_final_year | C50: =FRY -> 2027-28 | D50: =FRY | E50: FRY from cover sheet
B51: dms_DollarReal_year | C51: =LEFT(CRCP_final_year,2)&RIGHT(CRCP_final_year,2) -> 2025 | D51: =LEFT(CRCP_final_year,2)&RIGHT(CRCP_final_year,2) | E51: Uses the value in CRCP_final_year
B52: dms_Previous_DollarReal_year | C52: =LEFT(PRCP_final_year,2)&RIGHT(PRCP_final_year,2) -> 2020 | D52: =LEFT(PRCP_final_year,2)&RIGHT(PRCP_final_year,2) | E52: Uses the value in PRCP_final_year
B53: dms_CRY_RYE | C53: =IFERROR(LEFT(CRY,2)&RIGHT(CRY,2),0) -> 2019 | D53: =IFERROR(LEFT(CRY,2)&RIGHT(CRY,2),0) | E53: For ABC single year RINS
B54: dms_Reset_RYE | C54: =IF(dms_Model_Span>1,IF(dms_Model="RFM",(LEFT(dms_DollarReal_year,2)&RIGHT(dms_DollarReal_year,2)),(LEFT(dms_Reset_final_year,2)&RIGHT(dms_Reset_final_year,2))),0) -> 2030 | D54: =IF(dms_Model_Span>1,IF(dms_Model="RFM",(LEFT(dms_DollarReal_year,2)&RIGHT(dms_DollarReal_year,2)),(LEFT(dms_Reset_final_year,2)&RIGHT(dms_Reset_final_year,2))),0) | E54: If model span > 1 then uses dms_Reset_RYE otherwise it's a multi year ABC and uses dms_Specified_RYE
B55: dms_Specified_RYE | C55: =IF(dms_MultiYear_ResponseFlag="Yes",(LEFT(dms_Specified_FinalYear,2)&RIGHT(dms_Specified_FinalYear,2)),0) -> 0 | D55: =IF(dms_MultiYear_ResponseFlag="Yes",(LEFT(dms_Specified_FinalYear,2)&RIGHT(dms_Specified_FinalYear,2)),0) | E55: If multi year ABC - uses dms_Specified_FinalYear
B56: dms_Model_Span | C56: =INDEX(dms_Model_Span_List,MATCH(dms_Model,dms_Model_List)) -> 5 | D56: =INDEX(dms_Model_Span_List,MATCH(dms_Model,dms_Model_List)) | E56: A result of 5 is used to signify that it is more than 1 year span
B57: dms_RYE_result | C57: =IF(dms_MultiYear_ResponseFlag="yes",dms_Specified_RYE,(IF(dms_Model_Span>1,dms_Reset_RYE,dms_CRY_RYE))) -> 2030 | D57: =IF(dms_MultiYear_ResponseFlag="yes",dms_Specified_RYE,(IF(dms_Model_Span>1,dms_Reset_RYE,dms_CRY_RYE))) | E57: Nested IF - feeds into dms_RYE
B58: dms_Reset_Span | C58: =IF(dms_Reset_RYE>0,CONCATENATE(FRCP_y1," to ",FRCP_final_year),0) -> 2025-26 to 2029-30 | D58: =IF(dms_Reset_RYE>0,CONCATENATE(FRCP_y1," to ",FRCP_final_year),0) | E58: Reset span of years as text
B59: dms_SpecifiedYear_Span | C59: =IF(dms_Specified_RYE>0,CONCATENATE(CRY," to ",dms_Specified_FinalYear),0) -> 0 | D59: =IF(dms_Specified_RYE>0,CONCATENATE(CRY," to ",dms_Specified_FinalYear),0) | E59: Multi year ABC span of years as text
B60: dms_Header_Span | C60: =IF(dms_MultiYear_Flag=1,dms_SpecifiedYear_Span,IF(dms_Model_Span>1,dms_y1&" to "&FRCP_final_year,CRY)) -> 2018-19 to 2029-30 | D60: =IF(dms_MultiYear_Flag=1,dms_SpecifiedYear_Span,IF(dms_Model_Span>1,dms_Reset_Span,CRY)) | E60: NESTED IF - for Sheet Headers
B61: ABC RINS THAT SPAN MULTIPLE YEARS
B62: This is a multi year ABC RIN? | C62: No
C63: =IF(dms_MultiYear_ResponseFlag="No",0,1) -> 0 | D63: dms_MultiYear_Flag | E63: This is set from the answer provided above
C64: =IF(dms_MultiYear_Flag=1,FRY,"not a Multiple year submission") -> not a Multiple year submission | D64: dms_Specified_FinalYear | E64: The result here is returned to dms_CRCP_FinalYear_Result if response to Q in C73 is "yes" and dms_MultiYear_Flag is set to 1
B65: Start year for 5.2 in Multi year ABC RINS | C65: =IFERROR(IF(dms_MultiYear_Flag=1,FRY,CRY),"not an ABC") -> 2018-19 | D65: dms_0502_Inst_Year | E65: =IF(dms_MultiYear_Flag=1,FRY,CRY) | G65: For single year RINS this is CRY - multi year RINS need to start a the end of the span of years (ie. FRY)
B66: WHAT IS THE RYE?
B67: Reg Period Lengths
B68: PRCP length in years | C68: =INDEX(dms_PRCPlength_List,MATCH(dms_TradingName,dms_TradingName_List)) -> 5 | D68: dms_PRCPlength_Num | E68: =INDEX(dms_PRCPlength_List,MATCH(dms_TradingName,dms_TradingName_List))
B69: CRCP length in years | C69: =INDEX(dms_CRCPlength_List,MATCH(dms_TradingName,dms_TradingName_List)) -> 5 | D69: dms_CRCPlength_Num | E69: =INDEX(dms_CRCPlength_List,MATCH(dms_TradingName,dms_TradingName_List))
B70: FRCP length in years | C70: =INDEX(dms_FRCPlength_List,MATCH(dms_TradingName,dms_TradingName_List)) -> 5 | D70: dms_FRCPlength_Num | E70: =INDEX(dms_FRCPlength_List,MATCH(dms_TradingName,dms_TradingName_List))
B71: Single year RIN?
B72: Single Year ABC RIN ? | C72: =IF(dms_Model="EB",1,0) -> 0 | D72: dms_EB
C73: =IF(dms_Model="CA",1,0) -> 0 | D73: dms_CA | E73: =dms_SingleYear_Model
C74: =IF(dms_Model="ARR",1,0) -> 0 | D74: dms_ARR
B75: Is this a single Year ABC RIN? | C75: =IF(SUM(dms_SingleYear_Model)=1,"yes","no") -> no | D75: dms_SingleYearModel | E75: =IF(SUM(dms_SingleYear_Model)=1,"yes","no")
B76: Single Year Final Year Result | C76: =IF(AND(dms_SingleYearModel="yes",dms_MultiYear_Flag=0),CRY,0) -> 0 | D76: dms_SingleYear_FinalYear_Result | E76: =IFERROR(IF(SUM(dms_SingleYear_Model)<>0,(INDIRECT(dms_SingleYear_FinalYear_Ref)),"not a single year RIN"),"CRY not present")
B77: Multi year RIN?
B79: Multi Year Reset/Model? | C79: =IF(dms_Model_Span>1,"yes","no") -> yes
B80: Final year result for Reset/Model | C80: =IF(dms_Model_Span>1,dms_Reset_final_year,0) -> 2029-30 | D80: dms_MultiYear_FinalYear_Result | E80: dms_CRCP_FinalYear_Result
B82: Multi Year ABC RIN? | C82: =IF(dms_MultiYear_Flag=1,"yes","no") -> no | D82: dms_MultiYear_ABC_RIN
B83: Final year result for ABC multi year | C83: =IF(dms_MultiYear_Flag=1,C50,0) -> 0
B85: EB RINS
B86: Calendar Year for table 3.6 data | C86: =IFERROR(IF(dms_Segment="Transmission",dms_Cal_Year_B4_CRY,CRY),"CRY not present") -> 2018 | D86: dms_0306_Year | E86: =IF(dms_Segment="Transmission",dms_Cal_Year_B4_CRY,CRY)
B87: CA RINS
B88: Find how many rows in tables 6.3 sustained interruptions? | E88: dms_060301_MaxRows only returns a valid value when cover sheet is attached to a CA file
C89: =IF(dms_Model<>"CA","not a CA","Is a CA") -> not a CA | E89: =IF(dms_Model<>"CA","not a CA","Is a CA")
B90: dms_060301_Avg_Duration_Sustained_Int_Values present? | C90: =IFERROR(IF(INDEX(dms_060301_Avg_Duration_Sustained_Int_Values,1,1)<>"","yes","no"),"no") -> no | D90: dms_060301_checkvalue | E90: =IFERROR(IF(INDEX(dms_060301_Avg_Duration_Sustained_Int_Values,1,1)<>"","yes","no"),"no")
C91: =IF(AND(dms_Model="CA",(dms_060301_checkvalue="no")),"error - NR not present","no errors") -> no errors | E91: =IF(AND(dms_Model="CA",(dms_060301_checkvalue="no")),"error - NR not present","no errors")
B92: Table 6.3.1 - last row reference | C92: =IFERROR(IF(dms_Model="CA",LOOKUP(2,1/(dms_060301_Avg_Duration_Sustained_Int_Values<>""),(ROW(dms_060301_Avg_Duration_Sustained_Int_Values))),"not a CA"),"6.3 not present") -> not a CA | D92: dms_060301_LastRow | E92: =IFERROR(IF(dms_Model="CA",LOOKUP(2,1/(dms_060301_Avg_Duration_Sustained_Int_Values<>""),(ROW(dms_060301_Avg_Duration_Sustained_Int_Values))),"not a CA"),"6.3 not present")
B93: Table 6.3.1 - max number rows | C93: =IFERROR(IF(dms_Model="CA",(dms_060301_LastRow-15),"not a CA"),"error") -> not a CA | D93: dms_060301_MaxRows | E93: =IFERROR(IF(dms_Model="CA",(dms_060301_LastRow-15),"not a CA"),"error")
B94: Table 6.6.3 - Public lighting repair - no. business days | C94: =INDEX(dms_663_List,MATCH(dms_TradingName,dms_TradingName_List)) ->  | D94: dms_663 | E94: =INDEX(dms_663_List,MATCH(dms_TradingName,dms_TradingName_List))
B95: ARR or RESET RINS
B96: How many rows in tables 6.1 or 6.7? (leap year?) | C96: insert dms_LeapYear NR if required | E96: 'dms_LeapYear is used to determine dms_060701_Max_Rows BUT it is only found on worksheet 6.1 or 6.7 and the date value in the cell is used to determine whether it is a leap year
B97: Is dms_LeapYear named range present? | C97: =IFERROR(IF(dms_LeapYear,"yes"),"no") -> no
B98: Table 6.7.1 - includes a leap year? | C98: =IFERROR(IF(MONTH(DATE(YEAR(dms_LeapYear),2,29))=2,"is a leap year","not a leap year"), "dms_LeapYear not present") -> dms_LeapYear not present | D98: dms_LeapYear_Result | E98: =IFERROR(IF(MONTH(DATE(YEAR(dms_LeapYear),2,29))=2,"is a leap year","not a leap year"),"dms_LeapYear not present")
B99: MaxRows if Reset and leap year | C99: =IF(dms_LeapYear_Result="is a leap year",1827,1826) -> 1826 | D99: dms_060701_Reset_MaxRows | E99: =IF(dms_LeapYear_Result="is a leap year",1827,1826) | H99: number of days present in Reset RIN table
B100: MaxRows if ARR and leap year | C100: =IF(dms_LeapYear_Result="is a leap year",366,365) -> 365 | D100: dms_060701_ARR_MaxRows | E100: =IF(dms_LeapYear_Result="is a leap year",366,365) | H100: number of days present in ARR RIN table
B101: Table 6.7.1 - Max Rows (leap year/ non leap year) | C101: =IF(dms_Model="ARR",dms_060701_ARR_MaxRows,IF(dms_Model="Reset",dms_060701_Reset_MaxRows,"not a relevant RIN type")) -> 1826 | D101: dms_060701_MaxRows | E101: =IF(dms_Model="ARR",dms_060701_ARR_MaxRows,IF(dms_Model="Reset",dms_060701_Reset_MaxRows,"not a relevant RIN type"))
B102: How many columns in 6.7? (4 or 5 feeder categories) | C102: =IF(dms_FifthFeeder_flag_NSP="NO","This NSP has only 4 feeder categories","This NSP has 5 feeder categories") -> This NSP has only 4 feeder categories
B103: Table 6.7.1 - Last column (# of feeder categories > 4) | C103: =IF(dms_FifthFeeder_flag_NSP="NO",10,12) -> 10 | D103: dms_060701_MaxCols | E103: =IF(dms_FifthFeeder_flag_NSP="NO",8,10)
B104: Table 6.7.1 - Number of offset rows | C104: =IF(dms_Model="ARR",15,9) -> 9 | D104: dms_060701_OffsetRows | E104: =IF(dms_Model="ARR",15,9)
B105: Start date for telephone answering in 6.1 or 6.7? | E105: Using 060101 as naming standard not 060701 for start dates
B106: Table 6.1.1 and 6.7.1 - Start Date as Text | C106: =IF(dms_SingleYearModel="yes",(CONCATENATE(IF(LEN(CRY)=4,"1-Jan-","1-Jul-"),LEFT(CRY,4))),(CONCATENATE(IF(LEN(PRCP_y4)=4,"1-Jan-","1-Jul-"),LEFT(PRCP_y4,4)))) -> 1-Jul-2018 | D106: dms_060101_StartDateTxt | E106: =IF(SUM(dms_SingleYear_Model)>1,(CONCATENATE(IF(LEN(CRY)=4,"1-Jan-","1-Jul-"),LEFT(CRY,4))),(CONCATENATE(IF(LEN(CRCP_y4)=4,"1-Jan-","1-Jul-"),LEFT(CRCP_y4,4))))
B107: Table 6.1.1 and 6.7.1 - Start Date as Date Value | C107: =DATEVALUE(dms_060701_StartDateTxt) -> 43282 | D107: dms_060101_StartDateVal | E107: =DATEVALUE(dms_060701_StartDateTxt)
B108: ARRs
B109: How many rows in table 6.8? | C109: insert dms_060801_StartCell NR if required | E109: dms_060801_StartCell is only found on worksheet 6.8 and is used to determine the starting date for the date range
B110: Is dms_060801_StartCell named range present? | C110: yes | D110: Must be present for ARRs | E110: =IFERROR(IF((ROW(dms_060801_StartCell)-1)=1,"yes","yes"),"no")
B111: Table 6.8 - Number of offset rows | C111: 12 | D111: dms_0608_OffsetRows | E111: =IFERROR(IF(dms_Model="ARR",(ROW(dms_060801_StartCell)-1),"not an ARR"),"6.8 error")
B112: Table 6.8 - Last row | C112: 0 | D112: dms_0608_LastRow | E112: =IFERROR(IF(dms_060801_StartCell<>"",IF(dms_Model="ARR",(LOOKUP(2,1/(dms_060801_01_Values<>""),(ROW(dms_060801_01_Values)))),"not an ARR"),0),"0")
B113: Table 6.8 - MaxRows | C113: =IFERROR(IF(dms_Model="ARR",(MAX(0,dms_0608_LastRow-dms_0608_OffsetRows)),"not an ARR"),"0") -> not an ARR | D113: dms_060801_MaxRows | E113: =IFERROR(IF(dms_Model="ARR",(MAX(0,dms_0608_LastRow-dms_0608_OffsetRows)),"not an ARR"),"0")
B114: TNSP RESET RINS
B115: Table 7.9.4 only appears in TNSPs Reset RIN
B116: Table 7.9.4 - first year | C116: =LEFT(PRCP_y3,4) -> 2017 | D116: dms_070904_Start_Year | E116: =LEFT(PRCP_y3,4)
B118: MISC
B119: Distribution Determination Reference | C119: =INDEX(dms_DeterminationRef_List,MATCH(dms_TradingName,dms_TradingName_List)) ->  | D119: dms_DeterminationRef
B120: Public lighting NSP? | C120: =INDEX(dms_Public_Lighting_List,MATCH(dms_TradingName,dms_TradingName_List)) -> NO | D120: dms_Public_Lighting | E120: =INDEX(dms_Public_Lighting_List,MATCH(dms_TradingName,dms_TradingName_List))
B121: CBD Feeder for this business | C121: =INDEX(dms_CBD_flag,MATCH(dms_TradingName,dms_TradingName_List)) -> NO | D121: dms_CBD_flag_NSP
B122: Urban Feeder for this business | C122: =INDEX(dms_Urban_flag,MATCH(dms_TradingName,dms_TradingName_List)) -> NO | D122: dms_Urban_flag_NSP
B123: Short rural Feeder for this business | C123: =INDEX(dms_ShortRural_flag,MATCH(dms_TradingName,dms_TradingName_List)) -> NO | D123: dms_ShortRural_flag_NSP
B124: Long rural Feeder for this business | C124: =INDEX(dms_LongRural_flag,MATCH(dms_TradingName,dms_TradingName_List)) -> NO | D124: dms_LongRural_flag_NSP
B125: Fifth Feeder Category (eg. TasNetworks (D)) | C125: =INDEX(dms_FeederType_5_flag,MATCH(dms_TradingName,dms_TradingName_List)) -> NO | D125: dms_FifthFeeder_flag_NSP | E125: =INDEX(dms_FeederType_5_flag,MATCH(dms_TradingName,dms_TradingName_List))
B127: DISCARD FILES
B128: discard this record? | C128: NO | D128: dms_DISCARD | E128: If record is to be discarded from DB set this flag to YES
B130: SUBSET FILES
B131: Is this Submission File a Subset File | C131: NO | D131: dms_Partial
B134: REGULATORY YEARS FOR MULTI RYE SUBMISSIONS
B135: Multiple RYE flag | C135: NO | D135: dms_Multi_RYE_flag
C136: Manually specify RYE | D136: Named ranges to apply
C137: 2013 | D137: dms_RYE_01
C138: 2014 | D138: dms_RYE_02
C139: 2015 | D139: dms_RYE_03
C140: 2016 | D140: dms_RYE_04
C141: 2017 | D141: dms_RYE_05
C142: 2018 | D142: dms_RYE_06
C143: 2019 | D143: dms_RYE_07
C144: 2020 | D144: dms_RYE_08
C145: 2021 | D145: dms_RYE_09
